Cogmind - Beta 17 @@@ ROGUE MODE // 2026.07.18 @ 00:45:23 Player: szymekc Result: Heading to fleet! Performance ------------- Evolutions (9) 4500 Regions Visited (28) 5600 Robots Destroyed (1017) 5085 Value Destroyed (64640) 64640 Prototype IDs (125) 2500 Alien Tech Used (20) 4000 Bonus (96524) 96524 TOTAL SCORE: 182849 Bonus ------- Triggered High Security 2500 High Alert Combat Kills 46233 Follower Combat Kills 3929 Prayed to X0-1V1 5000 Major X0-1V1 Interference 25850 Network Hubs Disabled 400 Met Data Miner 300 Met Imprinter 300 Was Imprinted 300 Met Zhirov 300 Met R17 at Cetus 500 Used Core Reset Matrix 3000 Scanned by Researcher 500 Destroyed MAIN.C Guards 500 Met MAIN.C 5000 Win 3000 Friendly Fire -1088 Cogmind --------- Core Integrity 120/1475 Matter 686/700 Energy 348/350 System Corruption 0% Temperature Cool (0) +ITN Movement Core (50) Location To Fleet Rendezvous Parts ------- > --- POWER (3) -------- (None) > --- PROPULSION (7) --- (None) > --- UTILITY (11) ----- Spectral Analyzer Experimental Targeting Computer Experimental Core Analyzer Graphene Brace Spacefold Activator > --- WEAPON (5) ------- Core Cannon > --- INVENTORY (5) ---- Improved Potential Cannon Peak State ------------ > --- POWER ------------ Zionite Light DM Reactor Cooled Antimatter Reactor Cooled Antimatter Reactor > --- PROPULSION ------- Advanced Heavy Siege Treads High-density Centrium Heavy Treads High-density Centrium Heavy Treads High-density Centrium Heavy Treads > --- UTILITY ---------- Huge Storage Unit Experimental Optical Array Experimental Core Analyzer Improved Particle Accelerator Improved Weapon Cycler Zionite Shade Armor Phase Armor Experimental EM Shield > --- WEAPON ----------- Sigix Sheargun Sigix Sheargun Sigix Sheargun Enhanced Nova Cannon Sigix Broadsword > --- INVENTORY -------- Advanced Heavy Treads Advanced Coolant Injector Advanced Transmission Jammer Advanced Phase Shifter Experimental Weapon Shielding Zionite Weapon Casing Centrium Light Armor Plating Centrium Light Armor Plating Zionite Shade Armor Zionite Shade Armor Zionite Shade Armor Zionite Shade Armor Graphene Brace Experimental Force Field Transdimensional Reconstructor Integrity Redistributor Spacefold Activator EMDS Enhanced Nova Cannon Core Cannon Gamma Bomb Array Gamma Bomb Array [Rating: 284] Favorites ----------- Power Cooled Antimatter Reactor Engine Cooled Ion Engine Power Core Enhanced Fission Core Reactor Cooled Antimatter Reactor Propulsion Enhanced Biometal Leg Treads High-density Centrium Heavy Treads Leg Enhanced Biometal Leg Wheel Compact Wheel Flight Unit Improved Flight Unit Utility Huge Storage Unit Device X0-1V1's Piety Tracker Storage Huge Storage Unit Processor Experimental Core Analyzer Protection Zionite Shade Armor Artifact Phase Armor Weapon Enhanced Nova Cannon Energy Gun Sigix Sheargun Energy Cannon Enhanced Nova Cannon Ballistic Gun Heavy Assault Rifle Ballistic Cannon Perforator Launcher Gamma Bomb Array Special Weapon Guided Remote Datajack Impact Weapon Thunder Hammer Slashing Weapon Sigix Broadsword Piercing Weapon CR-A16's Pointy Stick Special Melee Weapon Chaos Jack Build | -11 -10 -10 -9 -9 -7 -6 -6 -6 -6 -6 -5 -5 -5 -5 -5 -5 -4 -4 -4 -4 -3 -3 -3 -3 -2 -2 -1 -1 ------- Run | Yrd Mat Min Mat Min Zio Pro Fac Low Low Dat Pro Fac Ext Cet Arc Hub Fac Upp Upp Zhi Pro Res Qua Sec Res Tes Acc Com Slots Evolved 17 | . . . 2 . . . 6 . . . . 2 . . . . 2 . . . . 2 . . 2 . 1 . Power 1 | . . . . . . . . . . . . . . . . . . . . . . 1 . . . . . . Propulsion 5 | . . . 1 . . . 4 . . . . . . . . . . . . . . . . . . . . . Utility 9 | . . . 1 . . . 2 . . . . 2 . . . . 1 . . . . 1 . . 1 . 1 . Weapon 2 | . . . . . . . . . . . . . . . . . 1 . . . . . . . 1 . . . Parts Attached 495 | 6 13 11 19 . 4 2 61 4 . 8 4 2 16 13 5 29 13 2 . 3 4 6 43 18 40 73 76 20 Power 79 | 1 1 3 2 . 1 1 11 1 . 2 . . 5 2 . 4 . . . 1 1 1 5 4 6 12 12 3 Engine 11 | 1 1 2 2 . . . 4 . . . . . . . . . . . . . . . . 1 . . . . Core 16 | . . 1 . . 1 1 7 . . . . . 5 . . 1 . . . . . . . . . . . . Reactor 52 | . . . . . . . . 1 . 2 . . . 2 . 3 . . . 1 1 1 5 3 6 12 12 3 Propulsion 105 | 2 1 2 5 . . 1 12 . . 2 1 . 1 5 1 7 2 . . . . 1 9 2 5 20 21 5 Treads 38 | 2 . 2 2 . . 1 . . . . . . . 4 1 1 . . . . . . 4 2 5 3 6 5 Leg 58 | . . . 2 . . . 5 . . 2 1 . 1 1 . 6 2 . . . . 1 5 . . 17 15 . Wheel 2 | . 1 . 1 . . . . . . . . . . . . . . . . . . . . . . . . . Hover . | . . . . . . . . . . . . . . . . . . . . . . . . . . . . . Flight 7 | . . . . . . . 7 . . . . . . . . . . . . . . . . . . . . . Utility 200 | 1 6 3 5 . 2 . 20 3 . 4 2 1 6 3 4 14 11 2 . 2 3 3 23 8 17 20 32 5 Device 133 | 1 2 3 5 . 2 . 8 2 . 2 2 1 4 1 4 8 9 2 . . 3 2 19 2 11 12 24 4 Storage 11 | . 3 . . . . . 2 . . . . . . . . 1 . . . 1 . . . . . . 4 . Processor 22 | . . . . . . . 3 . . 1 . . . . . 3 2 . . . . . 1 3 1 4 3 1 Hackware . | . . . . . . . . . . . . . . . . . . . . . . . . . . . . . Protection 32 | . 1 . . . . . 7 1 . 1 . . 2 2 . 2 . . . 1 . 1 2 2 5 4 1 . Artifact 2 | . . . . . . . . . . . . . . . . . . . . . . . 1 1 . . . . Weapon 111 | 2 5 3 7 . 1 . 18 . . . 1 1 4 3 . 4 . . . . . 1 6 4 12 21 11 7 Energy Gun 25 | . 1 2 3 . . . 4 . . . . . 2 1 . . . . . . . . 1 3 2 4 . 2 Energy Cannon 28 | . . . . . . . 2 . . . . 1 1 . . 2 . . . . . 1 2 . 4 7 6 2 Ballistic Gun 21 | 2 2 1 2 . . . . . . . . . 1 2 . 2 . . . . . . . . . 4 4 1 Ballistic Cannon 15 | . 2 . 1 . . . . . . . . . . . . . . . . . . . 1 . 4 5 1 1 Launcher 4 | . . . . . . . 1 . . . . . . . . . . . . . . . . 1 1 1 . . Special Weapon 1 | . . . . . . . . . . . . . . . . . . . . . . . . . 1 . . . Impact Weapon 3 | . . . 1 . . . 1 . . . . . . . . . . . . . . . 1 . . . . . Slashing Weapon 13 | . . . . . 1 . 9 . . . 1 . . . . . . . . . . . 1 . . . . 1 Piercing Weapon 1 | . . . . . . . 1 . . . . . . . . . . . . . . . . . . . . . Special Melee Weapon . | . . . . . . . . . . . . . . . . . . . . . . . . . . . . . Unidentified Prototypes 106 | . 1 1 . . 2 . 13 1 . 2 1 . 2 5 . 6 1 . . 4 . . 27 3 11 17 5 4 Corrupted Parts 11 | . . . . . . . . . . . . . . 5 1 . . . . . 1 . 3 1 . . . . System Corruption 70 | . . . . . . . . . . . . . . 31 11 . . . . . 7 . 16 5 . . . . Parts Lost 76 | . . 7 . . . . 1 . . 1 . . 3 . . 1 . . . . 2 . 2 1 2 26 14 16 Power 16 | . . 2 . . . . 1 . . . . . 1 . . . . . . . . . . 1 . 5 3 3 Propulsion 15 | . . 2 . . . . . . . . . . . . . . . . . . . . . . . 4 4 5 Utility 27 | . . 1 . . . . . . . 1 . . 2 . . 1 . . . . 1 . 1 . 2 13 2 3 Weapon 18 | . . 2 . . . . . . . . . . . . . . . . . . 1 . 1 . . 4 5 5 Highest Loss Streak 16 | . . 2 . . . . 1 . . 1 . . 2 . . 1 . . . . 2 . 1 1 1 12 8 16 To Critical Strikes . | . . . . . . . . . . . . . . . . . . . . . . . . . . . . . Average Backups 19 | 1 11 16 19 20 21 25 6 14 15 15 15 15 16 15 15 20 22 22 22 23 22 23 22 22 21 20 20 18 Power . | . 1 . . 1 1 1 . . . . . . . . . . . . . . . . . . . 1 1 1 Propulsion 2 | . 1 3 6 9 9 10 1 3 3 3 2 2 2 1 1 1 1 . . . . 1 . . . 1 2 1 Utility 7 | . 6 5 4 4 4 5 2 4 5 4 5 4 5 6 6 9 11 13 14 15 15 14 14 11 12 6 6 5 Weapon 6 | . 3 6 6 5 6 8 1 7 7 7 7 9 8 7 7 9 9 8 8 6 4 4 3 4 5 9 9 8 Tool/Special . | . . . . . . . . . . . . . . . . . . . . . . . . . . . . . Unused Backups 102 | . 2 3 5 . 2 1 24 2 . 2 . . 1 2 . 6 2 1 . 2 1 2 9 1 9 6 16 3 Power 10 | . . . . . . 1 . 1 . . . . . . . 1 . . . . . . 1 . . . 5 1 Propulsion 27 | . . 1 1 . . . 11 . . 2 . . . . . 1 . . . . . . 1 . 3 2 5 . Utility 32 | . 2 1 1 . . . 6 1 . . . . 1 2 . 2 2 . . . 1 2 4 1 1 3 2 . Weapon 30 | . . 1 3 . 2 . 6 . . . . . . . . 2 . 1 . 2 . . 3 . 4 1 4 1 Tool/Special 3 | . . . . . . . 1 . . . . . . . . . . . . . . . . . 1 . . 1 Average Slot Usage (%) 83 | . 99 98 98 100 97 100 75 74 75 74 87 88 88 87 80 72 89 90 90 83 89 90 79 68 77 81 78 71 Engine 2 | . 14 8 9 10 10 7 1 . . . . . . . . . . . . . . . . . . . . . Core 1 | . . 4 . . . 2 5 6 6 5 . . 7 4 . . . . . . . . . . . . . . Reactor 7 | . . . . . . . . 5 6 5 11 10 2 5 10 9 9 9 9 9 9 13 12 11 11 11 10 6 Treads 11 | . 24 28 21 20 20 20 . . . . . . . 6 17 20 3 . . . . . 4 17 16 11 8 12 Leg 9 | . . . . . . . 10 18 18 19 28 26 26 17 2 . 29 38 38 38 38 34 22 . . 8 9 1 Device 13 | . 14 13 18 20 20 20 10 10 12 11 11 20 20 19 19 14 11 9 9 9 10 16 11 7 14 16 7 10 Storage 5 | . 11 13 9 10 10 10 2 6 6 6 5 5 5 5 5 5 4 4 4 4 4 4 4 3 3 3 3 2 Processor 6 | . . . . . . . 2 1 . . 5 5 5 5 5 4 16 14 14 14 12 8 4 6 7 9 14 14 Protection 3 | . 1 . . . . . 5 5 6 5 5 5 4 6 3 5 3 3 4 4 3 4 4 3 5 3 2 2 Energy Gun 5 | . 9 6 26 30 19 30 2 . . . . . . 8 . . . . . . . . . 2 9 5 . . Energy Cannon 4 | . . . . . . . . . . . . 1 7 . . 2 5 9 9 3 9 8 5 4 2 4 14 15 Ballistic Gun 3 | . 12 21 10 10 9 10 . . . . . . . 4 10 6 . . . . . . . . . . 1 . Slashing Weapon 3 | . . . . . 8 . 12 11 11 12 12 13 6 1 4 1 2 . . . . . 4 3 3 3 . . Peak Build Rating 284 | 6 22 26 38 35 46 44 95 104 104 115 119 130 130 155 165 168 181 180 175 174 184 196 253 279 284 277 279 256 Average Rating 164 | 5 10 22 33 35 35 40 80 101 103 104 116 128 125 135 159 158 174 177 172 154 174 190 230 250 265 251 249 237 On Entrance 130 | . 6 22 21 35 35 38 44 91 104 104 111 117 130 122 155 165 162 174 180 173 174 177 190 252 245 257 262 249 Avg Prop Armor Cover (%) 4 | . 11 . 9 . . . 6 . . . . . . 4 1 7 7 . . . . . 3 . 3 4 3 1 Naked Turns . | . . . . . . . . . . . . . . . . . . . . . . . . . . . . . Heaviest Build 272 | 9 91 52 66 63 102 116 91 99 104 101 104 107 119 119 119 181 181 181 181 179 181 197 241 241 233 226 272 263 Greatest Support 360 | 40 40 40 60 40 40 40 96 96 96 122 150 150 150 240 320 320 228 228 228 228 228 228 295 350 360 360 250 263 Greatest Overweight (x) 5 | . 5 1 3 1 2 2 . 1 1 1 . . . 1 . . 1 . . . . . 1 . . 1 2 2 Average Overweight (x) . | . 1 . 1 1 1 2 . . 1 . . . . . . . . . . . . . . . . . . . Largest Inventory Capacity 25 | 5 25 20 20 20 25 25 25 20 20 20 20 20 20 20 20 25 25 25 25 25 25 25 25 25 25 25 25 25 Average Capacity 22 | 5 16 16 20 20 23 25 9 20 20 20 20 20 20 20 20 24 25 25 25 25 25 25 25 25 25 25 25 24 Most Carried 25 | 4 15 20 20 20 25 25 25 20 20 20 20 20 20 20 20 25 25 25 25 25 25 25 25 25 25 25 25 25 Average Carried 21 | 1 11 16 19 20 21 24 8 19 20 19 19 19 19 19 19 23 24 24 24 24 24 24 24 24 24 23 24 23 Final Capacity 25 | 5 15 20 20 20 25 25 20 20 20 20 20 20 20 20 20 25 25 25 25 25 25 25 25 25 25 25 25 5 Final Carried 25 | 4 15 18 20 20 25 25 20 20 20 20 20 20 20 20 20 25 24 25 25 25 23 25 25 24 25 25 25 2 Class Distribution -------------------- 18% | Alien-Tank 12% | Alien-Gunner 10% | Tank 10% | Mutant 9% | Gladiator 6% | Scavenger-Mutant 5% | Messiah-Mutant 4% | Scavenger-Gunner 4% | Alien-Mutant 3% | Scavenger-Gladiator 3% | Messiah-Gunner 3% | Messiah-Tank Dominant Class ---------------- Mutant | -10/Materials Mutant | -10/Mines Scavenger-Tank | -9/Materials Tank | -9/Mines Tank | -7/Zion Tank | -6/Proximity Caves Gladiator | -6/Factory Gladiator | -6/Lower Caves Gladiator | -6/Lower Caves Gladiator | -6/Data Miner Scavenger-Gladiator | -5/Proximity Caves Scavenger-Gladiator | -5/Factory Scavenger-Mutant | -5/Extension Messiah-Tank | -5/Cetus Scavenger-Mutant | -5/Archives Scavenger-Mutant | -5/Hub_04(d) Messiah-Mutant | -4/Factory Messiah-Gunner | -4/Upper Caves Messiah-Skirmisher | -4/Upper Caves Messiah-Mutant | -4/Zhirov Messiah-Gunner | -3/Proximity Caves Messiah-Gunner | -3/Research Messiah-Tank | -3/Quarantine Alien-Mutant | -3/Section 7 Alien-Tank | -2/Research Alien-Tank | -2/Testing Alien-Gunner | -1/Access Alien-Gunner | -1/Command Resources | -11 -10 -10 -9 -9 -7 -6 -6 -6 -6 -6 -5 -5 -5 -5 -5 -5 -4 -4 -4 -4 -3 -3 -3 -3 -2 -2 -1 -1 ----------- Run | Yrd Mat Min Mat Min Zio Pro Fac Low Low Dat Pro Fac Ext Cet Arc Hub Fac Upp Upp Zhi Pro Res Qua Sec Res Tes Acc Com Matter Collected 27511 | 352 430 308 1067 142 193 121 1647 154 374 215 380 233 797 331 154 2589 474 619 103 . 920 383 2557 1872 2170 1940 6852 134 Remotely 453 | . . . . . . . . . . . . . . . . . . . . . 453 . . . . . . . Salvage Created 66222 | 144 636 634 808 41 . 230 1134 292 99 402 666 345 564 506 513 3252 982 861 173 . 976 636 3110 5295 11812 12981 13166 5964 Parts 2744 | 10 31 47 40 2 . 8 65 10 1 23 31 26 23 24 40 147 54 17 2 . 28 28 121 227 654 516 381 188 Haulers Intercepted 8 | . 2 . . . . . 1 . . . . . . . . 3 1 . . . . . . . . . 1 . Recyclers Shooed 3 | . . . . . . . . . . . . . . . . . 1 . . . . . . . 1 . 1 . Parts Field Recycled . | . . . . . . . . . . . . . . . . . . . . . . . . . . . . . Retrieved Matter . | . . . . . . . . . . . . . . . . . . . . . . . . . . . . . Parts Self-Destructed 76 | . . . . . 2 20 . 14 2 . 29 . . . . . . 1 . . 8 . . . . . . . Prevented 47 | . . . . . . 5 . 3 . . . . . . . . . 12 6 . 21 . . . . . . . Parts Restored . | . . . . . . . . . . . . . . . . . . . . . . . . . . . . . Kills | -11 -10 -10 -9 -9 -7 -6 -6 -6 -6 -6 -5 -5 -5 -5 -5 -5 -4 -4 -4 -4 -3 -3 -3 -3 -2 -2 -1 -1 ------- Run | Yrd Mat Min Mat Min Zio Pro Fac Low Low Dat Pro Fac Ext Cet Arc Hub Fac Upp Upp Zhi Pro Res Qua Sec Res Tes Acc Com Combat Hostiles Destroyed 846 | . 13 21 18 3 . 6 19 6 1 4 14 6 8 6 2 34 16 13 3 . 17 7 36 61 134 150 155 93 Melee 42 | . . . . . . . 10 5 1 3 6 4 2 . . . . . . . . . 1 6 2 1 1 . Guns 239 | . 10 17 15 3 . 6 . . . . . . 2 1 2 30 . . . . . . . 9 69 66 9 . Cannons 307 | . 2 . 1 . . . . . . . 2 2 4 . . 4 6 6 3 . 9 3 8 18 14 42 131 52 AOE 99 | . 1 4 1 . . . 7 . . . 4 . . . . . 5 1 . . 2 . . 5 12 22 3 32 Classes Destroyed 29 | 3 5 1 2 . . . 3 . 1 . 2 . . . . 2 . . . . 2 . 1 3 1 1 . 2 Worker 32 | 1 2 . . . . . 2 . . . . . . . . 6 . . . . . 4 . 1 3 1 11 1 Builder 22 | . . 1 . . . . 2 . . . . . 1 . . . 3 . . . . 1 . 2 6 . 6 . Tunneler 11 | 4 . 2 2 . . . . . . . . . . . . 1 . . . . . . . . 1 . 1 . Hauler 8 | . 2 . . . . . 1 . . . . . . . . 3 1 . . . . . . . . . 1 . Recycler 18 | 1 1 . 1 . . . 1 . . . . . . . . 3 . . . . . . . 1 3 . 6 1 Carrier 1 | . . . . . . . . . . . . . . . . . . . . . . . . . . 1 . . Mechanic 31 | . . . . . . . . . . . . . . . . . . . . . . . . . 5 13 10 3 Operator 23 | . 1 . 1 . . . 3 . . . . . . . 9 . . . . . . . 6 1 1 . . 1 Drone 4 | . . . . . . . . . . . . . . . . . . . . . 2 . . . 1 . 1 . Watcher 12 | . . . . . . . 2 . . . . . . 1 . . 2 . . . . 1 1 3 1 1 . . Swarmer 81 | . 3 10 4 3 . 4 8 2 . . 4 . . . . . 6 3 1 . 4 . . . 3 . 14 12 Cutter 4 | . . . . . . . . . . . . . . . . . . . . . . . . . . . . 4 Saboteur 27 | . . . . . . . . . . . . . . . . 1 . . . . . . . 4 9 6 4 3 Grunt 257 | . 9 11 4 . . 2 5 4 . . 7 2 3 . . 10 1 7 1 . 7 3 9 18 34 45 50 25 Brawler 45 | . . . 1 . . . . . . . . . 2 . . 1 . . . . . . . 5 5 13 6 12 Duelist 47 | . . . 2 . . . . . . . . . . . . 4 1 . . . . 1 . 3 10 8 12 6 Protector 26 | . . . . . . . . . . . . . . . . 1 . . . . . . . . 7 8 6 4 Researcher 9 | . . . . . . . . . . . . . . . . . . . . . . . . 8 . 1 . . Sentry 56 | . 1 . 7 . . . 4 . . . . . 2 . 2 3 1 1 1 . . . 4 6 9 . 13 2 Specialist 9 | . . . . . . . . . 1 . . . . . . . . . . . . 3 . 2 . 3 . . Hunter 68 | . . . . . . . . . . . 1 3 . . . 2 3 . . . . . 3 8 10 11 11 16 Programmer 127 | . . . . . . . 1 . . . 2 . . . . 6 2 . . . 3 . 7 11 35 35 22 3 Heavy 1 | . . . . . . . 1 . . . . . . . . . . . . . . . . . . . . . Behemoth 5 | . . . . . . . . . . . . . . . . . . . . . 1 . . . 2 . 1 1 Cetus Guard 6 | . . . . . . . . . . . . . . 6 . . . . . . . . . . . . . . Quarantine Guard 12 | . . . . . . . . . . . . . . . . . . . . . . . 12 . . . . . S7 Guard 1 | . . . . . . . . . . . . . . . . . . . . . . . . 1 . . . . Enhanced Grunt 4 | . . . . . . . . . . 4 . . . . . . . . . . . . . . . . . . Lightning 6 | . . . . . . . . . . . . . . . . 6 . . . . . . . . . . . . Combat Programmer 2 | . . . . . . . . . . . . . . . . . . . . . . . . . . . . 2 Investigator 5 | . . . . . . . . . . . . . . . . . . . . . . . . . 1 1 3 . Striker 22 | . . . . . . . . . . . . . . . . . . . . . . . . 1 6 9 6 . Executioner 27 | . . . . . . . . . . . . . . . . . . . . . . . . 2 3 11 9 2 Alpha 7 1 | . . . . . . . . . . . . . . . . . . . . . . . . . . . . 1 Fortress 1 | . . . . . . . . . . . . . . . . . . . . . . . 1 . . . . . Protovariant H 1 | . . . . . . . . . . . . . . . . . . . . . . . . . . 1 . . Decomposer 7 | . . . . . . . . . 3 . . . . . . . . 3 . . 1 . . . . . . . Samaritan 1 | . . . . . . . . . . . 1 . . . . . . . . . . . . . . . . . Thug 1 | . . . . . . . . . . . . . 1 . . . . . . . . . . . . . . . Savage 4 | . . . . . . . . . . . . . . . . . 2 2 . . . . . . . . . . Wizard 1 | . . . . . . . . . . . . 1 . . . . . . . . . . . . . . . . Best Kill Streak 75 | 3 3 5 4 3 . 3 6 2 1 2 7 3 2 4 7 11 7 5 3 . 10 6 9 16 53 36 75 29 Combat Bots Only 50 | . 3 4 4 3 . 3 5 2 1 2 7 3 2 4 2 9 7 5 3 . 10 4 5 8 50 33 38 27 Max Kills in Single Turn 9 | 1 1 2 1 2 . 1 4 1 1 1 4 1 1 1 1 3 4 1 1 . 2 2 2 2 3 6 5 9 Gunslinging 1 | . . . . 1 . . . . . . . . . . . 1 . . . . . . . 1 1 1 . . Exploded 8 | . 1 2 1 . . . 4 . . . 4 . . . . . 4 1 . . 1 . . 1 2 6 3 8 Melee 1 | . . . . . . . 1 1 1 1 1 1 1 . . . . . . . . . 1 1 1 1 1 . Uniques/NPCs Destroyed 1 | . . . . . . . . . . 1 . . . . . . . . . . . . . . . . . . Data Miner (-6/Data Miner) Combat | -11 -10 -10 -9 -9 -7 -6 -6 -6 -6 -6 -5 -5 -5 -5 -5 -5 -4 -4 -4 -4 -3 -3 -3 -3 -2 -2 -1 -1 -------- Run | Yrd Mat Min Mat Min Zio Pro Fac Low Low Dat Pro Fac Ext Cet Arc Hub Fac Upp Upp Zhi Pro Res Qua Sec Res Tes Acc Com Hostile Shots Fired 5551 | . 59 142 40 8 . 28 198 44 13 32 59 25 63 29 6 265 37 11 . . 106 46 147 337 747 1304 982 823 Missed 1511 | . 16 43 13 1 . 9 83 6 5 8 21 11 19 9 . 54 13 5 . . 34 16 44 118 176 342 299 166 Intercepted 13 | . . . . . . . . . . . . . . . . . . . . . . . . . . . . 13 Deflected 27 | . . . . . . . 8 9 . 3 4 2 1 . . . . . . . . . . . . . . . Hits 4040 | . 43 99 27 7 . 19 115 38 8 24 38 14 44 20 6 211 24 6 . . 72 30 103 219 571 962 683 657 Melee 206 | . . . 1 . . . . . . . . . . . . 28 1 . . . . . . 3 24 77 43 29 Projectile 3834 | . 43 99 26 7 . 19 115 38 8 24 38 14 44 20 6 183 23 6 . . 72 30 103 216 547 885 640 628 AOE 22 | . . . . . . . 4 . . . . . . . . . . . . . . . . . 1 1 2 14 Critical Strikes 273 | . . 2 3 . . 2 5 . . . 3 . 2 5 . 20 . 1 . . 9 . 9 19 48 64 43 38 Actively Blocked 123 | . . . . . . . . . . . . . 1 . . 3 . . . . . . . . 26 51 28 14 Part Disruptions 20 | . . . . . . . . . . 1 . . . . . 2 . . . . . . . 3 7 3 3 1 Damage Taken 53232 | . 345 1015 296 42 . 247 1242 265 53 701 528 74 756 446 120 3105 363 56 . . 707 310 1083 2029 4434 14187 9888 10940 Core 4026 | . 28 160 16 12 . 28 95 35 . 112 55 . 30 27 18 86 19 . . . 24 15 92 445 198 953 427 1151 Absorbed by Shields 24927 | . 136 . 113 18 . 92 734 276 55 49 114 36 271 113 42 318 150 59 . . 429 106 863 1018 4129 3976 5266 6564 Reduced by Siege Mode 2326 | . . . . . . . . . . . . . . . . 121 . . . . . . . . 196 1197 . 812 Redirected to Core 270 | . . . . . . . . . . . . . . . . . . . . . . . 61 190 19 . . . Redirected to Shielding 247 | . . . . . . . 47 . . . . . . . . . . . . . . . 27 . . 173 . . Ignored by Resistances 21545 | . . . . . . . . . . 216 . . . . . 2785 . . . . 536 . 1199 2422 6437 7235 715 . Regen/Repaired (Parts) 14563 | . . . . . 45 . . . . . . . . . . . . . . . . . 290 292 3989 4796 3316 1835 Core Remaining (%) 58 | 100 . 28 . . . 79 . . . . 59 . . . . 81 . . . . 95 . . 30 . 46 . 8 Volleys Fired 1787 | 23 59 56 26 3 . 16 2 . 1 . 5 9 14 18 5 173 40 42 4 1 64 21 124 192 265 287 220 117 Largest 6 | 2 2 2 5 4 . 4 1 . 1 . 1 1 2 3 3 3 1 2 1 1 1 1 1 4 4 6 5 5 Hottest 572 | 40 70 90 223 200 . 200 43 . 90 . 90 90 180 216 103 123 90 160 90 70 90 105 105 420 420 572 530 530 Shots Fired 3943 | 46 119 115 103 12 . 53 6 . 1 . 5 9 26 50 14 312 40 45 6 1 66 21 125 221 687 894 516 450 Gun 2100 | 46 86 115 101 12 . 53 4 . . . . . 2 45 14 253 . . . . . . . 48 589 577 148 7 Cannon 1749 | . 33 . 2 . . . . . 1 . 4 7 24 5 . 59 39 45 6 1 66 21 125 168 42 291 367 443 Launcher 94 | . . . . . . . 2 . . . 1 2 . . . . 1 . . . . . . 5 56 26 1 . Special . | . . . . . . . . . . . . . . . . . . . . . . . . . . . . . Kinetic 864 | 46 77 79 33 3 . 16 . . . . . . 2 . 14 253 . . . . . . . . . 51 281 9 Thermal 1564 | . . . 70 9 . 37 3 . 1 . 4 2 24 . . 59 8 17 1 . 31 3 38 32 42 518 224 441 Explosive 6 | . . . . . . . 2 . . . 1 2 . . . . 1 . . . . . . . . . . . Electromagnetic 572 | . 42 36 . . . . 1 . . . . 5 . 50 . . 31 28 5 1 35 18 87 141 56 26 10 . Slashing 936 | . . . . . . . . . . . . . . . . . . . . . . . . 48 589 299 . . Robot Hit Streak 36 | 7 9 10 14 5 . 7 . . 1 . 4 9 15 7 7 36 14 10 3 . 7 14 19 9 33 36 22 35 Robot Miss Streak 11 | 2 4 5 3 2 . 3 1 . . . . . 3 3 3 3 2 1 . . 2 . 2 3 5 8 11 3 Penetration Max 5 | . . . . . . . . . . . . . . . 1 2 1 1 1 . . 1 1 1 1 5 3 . Secondary Targets 65 | . 3 8 3 2 . . . . . . . . . 1 . 9 . . . . . . . 4 18 17 . . Max Gunslinging Chain 2 | . 1 1 1 1 . . . . . . . . . 1 . 1 . . . . . . . 1 2 1 . . Capacitor 426 | . . . . . . . . . . . . . . . . . 13 43 6 1 66 21 125 151 . . . . Shots Hit Robots 2773 | 30 69 76 66 8 . 30 49 19 7 29 23 13 30 37 18 240 28 22 3 . 43 10 94 162 423 598 318 328 Core Hits 2379 | 11 28 40 41 5 . 18 25 7 2 9 14 7 13 13 13 109 21 12 4 . 14 11 28 109 507 528 601 189 Critical Kills 148 | . . 1 . . . . 1 . . . 2 . . . . 9 . . . . . . 2 . . 9 118 6 Critical Parts Destroyed 179 | 1 . 2 . . . . 2 3 1 1 1 . . . 1 9 . . . . . . . . . 17 141 . Critical Strikes 459 | 1 1 3 3 . . 3 6 4 1 7 6 2 3 . 1 18 9 6 2 . 4 3 14 26 8 39 281 8 Burn 6 | . . . 3 . . 3 . . . . . . . . . . . . . . . . . . . . . . Meltdown 17 | . . . . . . . . . . . . . . . . . . . . . . . 2 . . 4 5 6 Destroy 313 | 1 . 3 . . . . . . . . . . . . 1 18 . . . . . . . . . 22 268 . Blast 6 | . . . . . . . . . . . . . . . . . . . . . . . . . . . 4 2 Corrupt 62 | . 1 . . . . . . . . . . . . . . . 9 6 2 . 4 3 11 23 . . 3 . Smash 11 | . . . . . . . 3 3 1 1 3 . . . . . . . . . . . . . . . . . Sever 43 | . . . . . . . 3 1 . 6 3 2 2 . . . . . . . . . 1 3 8 13 1 . Impale 1 | . . . . . . . . . . . . . 1 . . . . . . . . . . . . . . . Melee Attacks 461 | . . . . . 1 . 81 25 9 69 34 18 19 . 9 6 6 . . . . . 34 78 29 30 13 . Kinetic 6 | . . . . . . . . . . . . . . . . . . . . . . . 6 . . . . . Impact 56 | . . . . . . . 14 17 3 4 18 . . . . . . . . . . . . . . . . . Slashing 392 | . . . . . 1 . 64 8 6 65 16 18 15 . 9 6 6 . . . . . 28 78 29 30 13 . Piercing 7 | . . . . . . . 3 . . . . . 4 . . . . . . . . . . . . . . . Sneak Attacks 55 | . . . . . . . 8 2 4 1 2 2 1 . 9 3 . . . . . . 1 10 6 2 4 . Combat Hostiles 5 | . . . . . . . . 2 . . 1 1 . . . . . . . . . . . . 1 . . . Follow-up Attacks 29 | . . . . . . . 8 6 . 7 3 2 2 . . . . . . . . . 1 . . . . . Martial Strikes 28 | . . . . . . . 9 4 . 3 8 2 2 . . . . . . . . . . . . . . . Damage Inflicted 150485 | 300 1251 1191 1118 129 . 519 3373 1043 523 1490 1459 666 1335 904 1152 7902 2387 1489 187 . 2448 1010 5927 10907 26948 37253 15248 22326 Guns 46627 | 300 638 952 1071 129 . 519 . . . . . . 32 817 252 5744 . . . . . . . 924 15489 17103 2561 96 Cannons 56730 | . 374 . 18 . . . . . 38 . 96 184 675 87 . 1498 1711 1433 187 . 2113 1010 5220 5997 1705 9935 10489 13960 Explosions 30813 | . 239 219 24 . . . 639 . . . 293 . . . . 266 620 56 . . 335 . 71 838 8882 8937 1124 8270 Melee 16083 | . . . . . . . 2734 1043 485 1490 1070 482 628 . 900 294 56 . . . . . 636 3108 846 1278 1033 . Ramming 232 | . . 20 5 . . . . . . . . . . . . 100 . . . . . . . 40 26 . 41 . Kinetic 16469 | 300 644 629 273 14 . 145 . . . . . . 32 . 252 5744 . . . . . . 228 . . 1241 6721 246 Thermal 58852 | . 239 219 840 115 . 374 . . 38 . 96 . 675 . . 1608 408 209 . . 1020 . 1343 638 3492 19850 5608 22080 Explosive 2496 | . . . . . . . 639 . . . 293 . . . . . 440 . . . . . . . . . 1124 . Electromagnetic 30090 | . 368 323 . . . . . . . . . 184 . 904 . 156 1483 1280 187 . 1428 1010 3948 6197 7095 4806 721 . Impact 2129 | . . . . . . . 441 678 296 110 604 . . . . . . . . . . . . . . . . . Slashing 39500 | . . . . . . . 2293 365 189 1380 466 482 528 . 900 294 56 . . . . . 408 4032 16335 10739 1033 . Piercing 100 | . . . . . . . . . . . . . 100 . . . . . . . . . . . . . . . Entropic 617 | . . . . . . . . . . . . . . . . . . . . . . . . . . 617 . . Highest Corruption 53 | . 3 3 4 4 4 . 53 31 11 11 15 . 5 36 36 31 15 19 23 23 23 . 16 11 24 50 28 17 Average Corruption 15 | . 2 3 4 4 4 . 30 11 10 11 10 . 5 16 30 19 13 16 20 23 17 . 6 7 9 30 18 15 Corruption Purged 19 | . . . . . . . . . . . . . . . 19 . . . . . . . . . . . . . Corruption Blocked . | . . . . . . . . . . . . . . . . . . . . . . . . . . . . . Effects 1138 | . 17 4 35 4 3 . 48 21 44 19 15 . 13 17 29 115 11 43 18 12 14 . 26 57 89 168 255 61 Message Errors 269 | . 5 1 8 1 1 . 13 2 16 7 3 . 5 5 6 22 2 7 6 4 4 . 6 20 26 26 62 11 Matter Fused 240 | . 7 . 10 . 1 . 8 5 14 1 4 . 2 2 4 32 2 7 4 6 4 . 5 10 16 28 57 11 Heat Flow Errors 126 | . 3 1 2 1 . . 7 4 5 4 . . 3 4 4 19 2 5 . 1 3 . 3 5 9 12 24 5 Energy Discharges 116 | . . . 4 2 1 . 4 6 2 2 2 . 3 1 2 11 2 5 1 . . . 3 6 3 25 25 6 Parts Rejected 12 | . . . 1 . . . . . . 1 . . . . . 1 . . . . . . . 1 2 2 2 2 Parts Fused 14 | . 1 . . . . . 1 2 1 . 1 . . 1 . . . . . . . . 1 . 1 2 3 . Data Loss (minor) 120 | . . . 4 . . . 7 1 5 2 1 . . 2 5 12 1 5 3 1 2 . 4 9 10 14 27 5 Data Loss (major) 48 | . . 1 3 . . . 1 . 1 . 3 . . . 3 5 1 5 1 . . . 1 2 1 6 12 2 Misfires 55 | . 1 1 . . . . 3 . . . . . . . 2 6 . 5 2 . 1 . 1 . 5 13 12 3 Alerts 28 | . . . 2 . . . 3 1 . 2 1 . . 1 . . . 1 1 . . . 1 . 2 6 6 1 Misdirections 8 | . . . . . . . 1 . . . . . . . . 1 . . . . . . . . . 2 3 1 Weapon Failures 102 | . . . 1 . . . . . . . . . . 1 3 6 1 3 . . . . 1 4 14 32 22 14 Overload Shots 2 | . . . . . . . . . . . . . . . . . . . . . . . . . . 1 1 . Overflow Damage 6690 | . . . . . . . 636 272 267 166 156 100 31 . 102 114 163 113 . . 329 34 542 756 171 536 725 1477 Projectiles 2375 | . . . . . . . . . . . . 17 31 . . 46 124 82 . . 262 34 344 260 7 322 175 671 Explosions 1232 | . . . . . . . 9 . . . 4 . . . . . 39 31 . . 67 . . . 99 107 70 806 Melee 3083 | . . . . . . . 627 272 267 166 152 83 . . 102 68 . . . . . . 198 496 65 107 480 . Knockbacks 131 | . 3 . . . . . 1 1 . . 3 . . . . . . . . . . . . . . 8 113 2 Impact 5 | . . . . . . . 1 1 . . 3 . . . . . . . . . . . . . . . . . Kinetic 115 | . 3 . . . . . . . . . . . . . . . . . . . . . . . . 8 102 2 Secondary 11 | . . . . . . . . . . . . . . . . . . . . . . . . . . . 11 . Self-Inflicted Damage 1137 | . 39 . 63 . . . 22 . . . . . . . . 31 . . . . 47 . . . 354 346 . 235 Shots 70 | . 1 . 1 . . . 1 . . . . . . . . 2 . . . . 1 . . . 41 20 . 3 Rammed 14 | . . 2 1 . . . . . . . . . . . . 8 . . . . . . . 2 1 . . . Targets Rammed 17 | . . 2 1 . . . . . . . . . . . . 8 . . . . . . . 2 2 . 2 . Kicked 2 | . . . . . . . . . . . . . . . . . . . . . . . . . . . 2 . Crushed 1 | . . . . . . . . . . . . . . . . . . . . . . . . . 1 . . . Highest Temperature 390 | . 241 66 349 210 . 194 303 234 229 222 93 181 273 229 218 302 210 324 78 84 306 75 289 390 261 261 258 258 Average Temperature 201 | . 51 9 108 101 . 76 89 118 94 100 36 79 112 54 85 71 49 101 41 41 115 32 82 126 223 195 243 199 Received Heat Transfer 5090 | . 120 357 80 . . 41 269 74 9 . 155 . 185 . 18 389 70 21 . . 129 126 88 266 446 860 766 621 Thermoelectric Energy+ 312144 | . . . . . . . . . . . . . . . . . . . . . . . . 882 73116 13042 214839 10265 Effects 308 | . . . . . . . . . . . . . . . . 2 . . . . 1 . 3 11 98 43 140 10 Energy Bleed 138 | . . . . . . . . . . . . . . . . 2 . . . . 1 . 1 4 41 18 68 3 Interference 169 | . . . . . . . . . . . . . . . . . . . . . . . 2 6 57 25 72 7 Damage (minor) 1 | . . . . . . . . . . . . . . . . . . . . . . . . 1 . . . . Siege Activations 16 | . . . . . . . . . . . . . . . . 5 . . . . . . . . 1 6 . 4 Total Turns 1068 | . . . . . . . . . . . . . . . . 177 . . . . . . . . 163 523 . 205 Longest Duration 297 | . . . . . . . . . . . . . . . . 72 . . . . . . . . 163 297 . 109 Martial Activations 18 | . . . . . . . 7 4 . 3 2 1 1 . . . . . . . . . . . . . . . Total Turns 418 | . . . . . . . 159 62 . 93 58 24 22 . . . . . . . . . . . . . . . Longest Duration 48 | . . . . . . . 48 31 . 41 34 24 22 . . . . . . . . . . . . . . . Shielding Activations . | . . . . . . . . . . . . . . . . . . . . . . . . . . . . . Robots Disrupted 5 | . . . . . . . . . . . . . . . . . . . . . . . . 1 2 2 . . Combat Hostiles 5 | . . . . . . . . . . . . . . . . . . . . . . . . 1 2 2 . . Robots Corrupted 135 | . . . . . . . 2 1 . 1 2 . . 5 . 1 5 6 . . 6 4 25 24 38 14 1 . Combat Hostiles 128 | . . . . . . . 2 1 . 1 2 . . 5 . . 5 6 . . 6 4 24 23 36 12 1 . Parts Fried 289 | . . . . . . . 5 1 . 1 7 2 . 6 . 3 10 11 1 . 11 4 58 49 77 37 6 . Impact Corruptions 25 | . . . . . . . 4 5 9 2 4 . . . . 1 . . . . . . . . . . . . Robots Melted 28 | . . . 2 . . . . . . . . . . . . . . . . . . . 2 . . 6 9 9 Combat Hostiles 25 | . . . 1 . . . . . . . . . . . . . . . . . . . 2 . . 5 8 9 Parts Melted 119 | . . . 9 2 . 2 . . . 1 . . . . . 1 . . . . 1 . 6 . 6 26 26 39 Heat Transferred 44914 | . 250 300 1861 215 . 973 . . . . . . . . . 200 150 80 . . 100 . 1086 483 2613 14151 4157 18295 Parts Sabotaged 1 | . . . . . . . . . . . . . . . . . . . . . . . . . . 1 . . Parts Stolen . | . . . . . . . . . . . . . . . . . . . . . . . . . . . . . Parts Stripped 17 | . . . . . . . . . . . . . . . . . . . . . . . 17 . . . . . Power Chain Reactions 48 | . 3 3 . . . . . . . . . . . . . 1 1 . . . 2 . 1 1 21 15 . . Alert | -11 -10 -10 -9 -9 -7 -6 -6 -6 -6 -6 -5 -5 -5 -5 -5 -5 -4 -4 -4 -4 -3 -3 -3 -3 -2 -2 -1 -1 ------- Run | Yrd Mat Min Mat Min Zio Pro Fac Low Low Dat Pro Fac Ext Cet Arc Hub Fac Upp Upp Zhi Pro Res Qua Sec Res Tes Acc Com Maximum Alert Level 5 | . . . . . . . 2 . . . . . 2 1 1 4 4 . . . . 1 3 5 5 5 5 5 Low Security (%) 24 | 100 100 100 100 100 . . 36 . . . . 100 26 32 40 17 . . . . . 25 7 . . . . . Level 1 6 | . . . . . . . 16 . . . . . 18 67 59 38 . . . . . 74 2 . . . . . Level 2 7 | . . . . . . . 47 . . . . . 55 . . 2 65 . . . . . 7 18 . . . . Level 3 11 | . . . . . . . . . . . . . . . . 32 25 . . . . . 82 30 . . . . Level 4 5 | . . . . . . . . . . . . . . . . 9 8 . . . . . . 11 25 . . . Level 5 5 | . . . . . . . . . . . . . . . . . . . . . . . . 20 5 2 3 67 High Security 38 | . . . . . . . . . . . . . . . . . . . . . . . . 18 69 97 96 32 Max Security . | . . . . . . . . . . . . . . . . . . . . . . . . . . . . . Sterilizations 4 | . . . . . . . 1 . . . . . . . . . . . . . . . . . 1 1 1 . Peak Influence 9005 | 10 128 193 179 127 . . 622 . . . . 135 570 254 348 1262 1233 . . . . 272 984 2403 5413 7854 9005 7981 Initial 5763 | . . 39 67 57 . . 31 . . . . 88 60 201 73 81 613 . . . . 145 114 552 1351 3044 4712 5763 Average 3034 | 1 49 38 73 62 . . 336 . . . . 59 357 209 230 573 742 . . . . 219 792 1342 3800 5903 8220 6275 Influence Increases 31449 | 30 396 542 588 70 . 479 1092 301 85 20 330 257 808 313 444 2043 950 330 60 . 365 220 1603 2559 4737 5200 4613 3014 Destroy 0b10 Robot/C 18300 | . 260 420 360 60 . 320 440 200 60 20 280 140 440 160 100 920 460 260 60 . 300 140 720 1420 2800 3060 3060 1840 Destroy 0b10 Robot/NC 1015 | 30 30 15 20 . . . 55 5 . . . . 15 10 45 95 35 . . . 10 30 35 40 140 135 210 60 Destroy Leader 2664 | . 64 50 90 10 . 50 46 20 10 . 50 20 42 . . 216 78 10 . . 40 12 182 156 452 422 462 182 Allied During Kill 1468 | . . . . . . 109 24 46 15 . . 6 118 139 63 225 93 . . . . . . 72 139 218 53 148 Successful Hack 137 | . 10 . 20 . . . . . . . . . . . . . 48 . . . . . 48 7 4 . . . Disable Machine 1425 | . 15 . 45 . . . 60 . . . . 15 . . 30 255 90 . . . . . 210 240 120 270 . 75 Anti-Garrison Action 150 | . . . . . . . . . . . . . . . . . . . . . . . . . 150 . . . Destroy Structure 2849 | . 17 12 38 . . . 24 . . . . 76 34 4 6 332 116 . . . . 8 48 72 726 564 528 244 Partial Spotted 90 | . . . . . . . 90 . . . . . . . . . . . . . . . . . . . . . Lose Combat Pursuer 1335 | . . 45 15 . . . 75 30 . . . . 15 . . . 30 60 . . 15 30 . 120 60 75 300 465 Miscellaneous 2016 | . . . . . . . 278 . . . . . 144 . 200 . . . . . . . 360 432 146 456 . . Influence Decreases 23366 | 30 296 468 615 217 . 429 657 652 219 20 188 274 573 489 393 1024 985 814 339 456 149 231 826 1138 1727 2759 3462 3936 Entered New Map 13113 | . . 61 107 90 . . 19 180 26 . . 54 65 159 111 154 641 452 141 456 . 71 91 430 1052 2369 3142 3242 Time Decay 8308 | 30 296 340 508 127 . 389 560 452 173 20 188 180 458 190 222 670 294 362 198 . 129 160 695 618 565 30 120 334 Lost Part 747 | . . 67 . . . . 10 . . . . . 30 . . 10 . . . . 20 . 20 10 20 260 140 160 Lost Ally 1198 | . . . . . . 40 68 20 20 . . 40 20 140 60 190 50 . . . . . 20 80 90 100 60 200 Squads Dispatched 238 | . 3 4 1 . . . 7 . . . . 1 1 . . 16 4 . . . . 1 5 24 46 59 41 25 Investigation 7 | . 1 1 . . . . 1 . . . . . 1 . . . 1 . . . . . 1 . . . . 1 Extermination 23 | . . . . . . . 5 . . . . 1 . . . 4 1 . . . . 1 2 3 4 . . 2 Reinforcement 15 | . 2 1 1 . . . 1 . . . . . . . . 3 1 . . . . . . . 1 1 3 1 Assault 176 | . . 2 . . . . . . . . . . . . . 3 1 . . . . . 1 21 37 58 32 21 Garrison 17 | . . . . . . . . . . . . . . . . 6 . . . . . . 1 . 4 . 6 . Intercept . | . . . . . . . . . . . . . . . . . . . . . . . . . . . . . Searches Triggered . | . . . . . . . . . . . . . . . . . . . . . . . . . . . . . Construction Impeded 3 | . . . . . . . . . . . . . . . . 1 . . . . . . . . 1 . 1 . Haulers Reinforced 1 | . . . . . . . . . . . . . . . . . 1 . . . . . . . . . . . Active Scanning Responses . | . . . . . . . . . . . . . . . . . . . . . . . . . . . . . Cargo Convoy Interrupts 1 | . . . . . . . . . . . . . . . . . . . . . . . . . 1 . . . Stealth | -11 -10 -10 -9 -9 -7 -6 -6 -6 -6 -6 -5 -5 -5 -5 -5 -5 -4 -4 -4 -4 -3 -3 -3 -3 -2 -2 -1 -1 --------- Run | Yrd Mat Min Mat Min Zio Pro Fac Low Low Dat Pro Fac Ext Cet Arc Hub Fac Upp Upp Zhi Pro Res Qua Sec Res Tes Acc Com Distress Signals 19 | . . . . . . . . . . . . . 2 2 . 2 . . . . . 1 1 1 2 1 5 2 Communications Jammed 185 | . . . . . . . . . . . . . . . . 7 2 . . . . . . . 40 136 . . Distress Signals 180 | . . . . . . . . . . . . . . . . 3 2 . . . . . . . 39 136 . . Times Spotted 1445 | . 24 35 20 2 . 15 40 11 3 4 14 7 24 9 4 61 27 12 2 . 17 5 37 107 231 277 271 186 Peak Tracking Total 49 | . 4 5 4 2 . 4 5 4 1 2 4 3 5 5 1 7 5 6 2 . 5 3 4 8 14 18 22 49 Tactical Retreats 48 | . . 2 1 . . . 3 1 . . . . 1 . . . 1 3 . . 1 2 . 7 2 5 14 5 Traps | -11 -10 -10 -9 -9 -7 -6 -6 -6 -6 -6 -5 -5 -5 -5 -5 -5 -4 -4 -4 -4 -3 -3 -3 -3 -2 -2 -1 -1 ------- Run | Yrd Mat Min Mat Min Zio Pro Fac Low Low Dat Pro Fac Ext Cet Arc Hub Fac Upp Upp Zhi Pro Res Qua Sec Res Tes Acc Com Traps Triggered 18 | . 4 . 1 . . . . . . . . . . . . 1 2 . . . . . 2 2 5 . 1 . Indirectly . | . . . . . . . . . . . . . . . . . . . . . . . . . . . . . Trap Hack Attempts . | . . . . . . . . . . . . . . . . . . . . . . . . . . . . . Triggered . | . . . . . . . . . . . . . . . . . . . . . . . . . . . . . Disarmed . | . . . . . . . . . . . . . . . . . . . . . . . . . . . . . Reprogrammed . | . . . . . . . . . . . . . . . . . . . . . . . . . . . . . Reused . | . . . . . . . . . . . . . . . . . . . . . . . . . . . . . Traps Extracted . | . . . . . . . . . . . . . . . . . . . . . . . . . . . . . Installed . | . . . . . . . . . . . . . . . . . . . . . . . . . . . . . Triggered . | . . . . . . . . . . . . . . . . . . . . . . . . . . . . . Machines | -11 -10 -10 -9 -9 -7 -6 -6 -6 -6 -6 -5 -5 -5 -5 -5 -5 -4 -4 -4 -4 -3 -3 -3 -3 -2 -2 -1 -1 ---------- Run | Yrd Mat Min Mat Min Zio Pro Fac Low Low Dat Pro Fac Ext Cet Arc Hub Fac Upp Upp Zhi Pro Res Qua Sec Res Tes Acc Com Machines Disabled 122 | . 1 . 3 . . . 6 . . 1 . 1 . . 2 17 6 2 1 1 . . 15 18 10 27 6 5 Max in Single Turn 10 | . 1 . 3 . . . 1 . . 1 . 1 . . 1 10 1 2 1 1 . . 1 1 1 1 1 2 Garrison Access 7 | . . . . . . . . . . . . . . . . . . . . . . . . . 3 1 3 . Network Hub 2 | . . . . . . . . . . . . . . . . 2 . . . . . . . . . . . . Energy Cycler 4 | . . . . . . . . . . . . . 2 . . . . . . . . . . . . . 2 . Machines Repaired . | . . . . . . . . . . . . . . . . . . . . . . . . . . . . . Machines Dismantled . | . . . . . . . . . . . . . . . . . . . . . . . . . . . . . Machines Sabotaged . | . . . . . . . . . . . . . . . . . . . . . . . . . . . . . Overloaded Fab Kills . | . . . . . . . . . . . . . . . . . . . . . . . . . . . . . Hacking | -11 -10 -10 -9 -9 -7 -6 -6 -6 -6 -6 -5 -5 -5 -5 -5 -5 -4 -4 -4 -4 -3 -3 -3 -3 -2 -2 -1 -1 --------- Run | Yrd Mat Min Mat Min Zio Pro Fac Low Low Dat Pro Fac Ext Cet Arc Hub Fac Upp Upp Zhi Pro Res Qua Sec Res Tes Acc Com Machines Accessed 36 | . 2 1 7 . . . 2 . . 4 . 1 . . . 1 1 2 . 4 . . 3 5 2 . 1 . Terminals 14 | . 2 . 6 . . . . . . . . . . . . . . 1 . . . . . 5 . . . . Fabricators 1 | . . . . . . . 1 . . . . . . . . . . . . . . . . . . . . . Repair Stations . | . . . . . . . . . . . . . . . . . . . . . . . . . . . . . Recycling Units 1 | . . . . . . . 1 . . . . . . . . . . . . . . . . . . . . . Scanalyzers 6 | . . . 1 . . . . . . . . . . . . . 1 . . . . . 3 . 1 . . . Garrison Access 4 | . . . . . . . . . . . . 1 . . . 1 . . . . . . . . 1 . 1 . Total Hacks 115 | . 5 1 16 . . . 5 . . 29 . 1 . . . 1 5 8 . 17 . . 12 9 5 . 1 . Successful 80 | . 4 1 6 . . . 1 . . 29 . . . . . . 2 8 . 17 . . 4 5 3 . . . Failed 35 | . 1 . 10 . . . 4 . . . . 1 . . . 1 3 . . . . . 8 4 2 . 1 . Catastrophic 13 | . . . 2 . . . 1 . . . . 1 . . . 1 1 . . . . . 4 1 1 . 1 . Database Lockouts . | . . . . . . . . . . . . . . . . . . . . . . . . . . . . . Manual 141 | . 1 . . . . . 33 . . . . 6 20 . . 25 10 . . . . 3 22 6 13 . . 2 Terminals 35 | . 5 . 14 . . . . . . . . . . . . . . 7 . . . . . 9 . . . . Fabricators 2 | . . . . . . . 2 . . . . . . . . . . . . . . . . . . . . . Repair Stations . | . . . . . . . . . . . . . . . . . . . . . . . . . . . . . Recycling Units 3 | . . . . . . . 3 . . . . . . . . . . . . . . . . . . . . . Scanalyzers 22 | . . . 2 . . . . . . . . . . . . . 5 . . . . . 12 . 3 . . . Garrison Access 5 | . . . . . . . . . . . . 1 . . . 1 . . . . . . . . 2 . 1 . Terminal Hacks 70 | . 4 1 6 . . . . . . 29 . . . . . . . 8 . 17 . . . 5 . . . . Record 23 | . . . . . . . . . . 11 . . . . . . . 7 . 5 . . . . . . . . Part Schematic 14 | . . . . . . . . . . 10 . . . . . . . . . 4 . . . . . . . . Robot Schematic 5 | . . . . . . . . . . 5 . . . . . . . . . . . . . . . . . . Robot Analysis 4 | . . . . . . . . . . . . . . . . . . . . 4 . . . . . . . . Prototype ID Bank 11 | . 2 . 2 . . . . . . 3 . . . . . . . . . 4 . . . . . . . . Open Door 7 | . . 1 . . . . . . . . . . . . . . . 1 . . . . . 5 . . . . Emergency Access Points 1 | . . . 1 . . . . . . . . . . . . . . . . . . . . . . . . . Hauler Manifests 4 | . 1 . 3 . . . . . . . . . . . . . . . . . . . . . . . . . Registered Components 1 | . 1 . . . . . . . . . . . . . . . . . . . . . . . . . . . Fabricator Hacks 1 | . . . . . . . 1 . . . . . . . . . . . . . . . . . . . . . Network Status 1 | . . . . . . . 1 . . . . . . . . . . . . . . . . . . . . . Repair Station Hacks . | . . . . . . . . . . . . . . . . . . . . . . . . . . . . . Recycling Unit Hacks . | . . . . . . . . . . . . . . . . . . . . . . . . . . . . . Scanalyzer 9 | . . . . . . . . . . . . . . . . . 2 . . . . . 4 . 3 . . . Insert Component 2 | . . . . . . . . . . . . . . . . . . . . . . . 2 . . . . . Retrieve Study 7 | . . . . . . . . . . . . . . . . . 2 . . . . . 2 . 3 . . . Garrison Access Hacks . | . . . . . . . . . . . . . . . . . . . . . . . . . . . . . Unauthorized Hacks . | . . . . . . . . . . . . . . . . . . . . . . . . . . . . . Terminals . | . . . . . . . . . . . . . . . . . . . . . . . . . . . . . Fabricators . | . . . . . . . . . . . . . . . . . . . . . . . . . . . . . Repair Stations . | . . . . . . . . . . . . . . . . . . . . . . . . . . . . . Recycling Units . | . . . . . . . . . . . . . . . . . . . . . . . . . . . . . Scanalyzers . | . . . . . . . . . . . . . . . . . . . . . . . . . . . . . Garrison Access . | . . . . . . . . . . . . . . . . . . . . . . . . . . . . . Data Cores Recovered 2 | . . . . . . . 1 . . . . . . . . . . . . . . . 1 . . . . . Used . | . . . . . . . . . . . . . . . . . . . . . . . . . . . . . Hacking Detections 17 | . 1 . 5 . . . 2 . . . . 1 . . . 1 1 1 . . . . 3 . 1 . 1 . Full Trace Events 1 | . . . . . . . 1 . . . . . . . . . . . . . . . . . . . . . Feedback Events . | . . . . . . . . . . . . . . . . . . . . . . . . . . . . . Feedback Blocked . | . . . . . . . . . . . . . . . . . . . . . . . . . . . . . Robot Schematics Acquired 25 | . . . . . 3 . 9 . . 5 . . . . . . . . . . . . 3 3 . 2 . . Robots Built . | . . . . . . . . . . . . . . . . . . . . . . . . . . . . . Authchips . | . . . . . . . . . . . . . . . . . . . . . . . . . . . . . Time . | . . . . . . . . . . . . . . . . . . . . . . . . . . . . . Total Robot Build Rating . | . . . . . . . . . . . . . . . . . . . . . . . . . . . . . Part Schematics Acquired 73 | . . . . . 16 . 12 . . 10 . . 16 . . . . . . 4 . . . 13 . 2 . . Parts Built . | . . . . . . . . . . . . . . . . . . . . . . . . . . . . . Authchips . | . . . . . . . . . . . . . . . . . . . . . . . . . . . . . Time . | . . . . . . . . . . . . . . . . . . . . . . . . . . . . . Total Part Build Rating . | . . . . . . . . . . . . . . . . . . . . . . . . . . . . . Part Studies Acquired 7 | . . . . . . . . . . . . . . . . . 2 . . . . . 2 . 3 . . . Parts Repaired . | . . . . . . . . . . . . . . . . . . . . . . . . . . . . . Time . | . . . . . . . . . . . . . . . . . . . . . . . . . . . . . Parts Recycled . | . . . . . . . . . . . . . . . . . . . . . . . . . . . . . Recycled Matter . | . . . . . . . . . . . . . . . . . . . . . . . . . . . . . Retrieved Matter . | . . . . . . . . . . . . . . . . . . . . . . . . . . . . . Retrieved Components . | . . . . . . . . . . . . . . . . . . . . . . . . . . . . . Parts Scanalyzed . | . . . . . . . . . . . . . . . . . . . . . . . . . . . . . Part Schematics Acquired . | . . . . . . . . . . . . . . . . . . . . . . . . . . . . . Parts Damaged . | . . . . . . . . . . . . . . . . . . . . . . . . . . . . . Bothacking | -11 -10 -10 -9 -9 -7 -6 -6 -6 -6 -6 -5 -5 -5 -5 -5 -5 -4 -4 -4 -4 -3 -3 -3 -3 -2 -2 -1 -1 ------------ Run | Yrd Mat Min Mat Min Zio Pro Fac Low Low Dat Pro Fac Ext Cet Arc Hub Fac Upp Upp Zhi Pro Res Qua Sec Res Tes Acc Com Used RIF Installer . | . . . . . . . . . . . . . . . . . . . . . . . . . . . . . Robots Hacked . | . . . . . . . . . . . . . . . . . . . . . . . . . . . . . Non-combat . | . . . . . . . . . . . . . . . . . . . . . . . . . . . . . Combat . | . . . . . . . . . . . . . . . . . . . . . . . . . . . . . Robot Hacks Applied . | . . . . . . . . . . . . . . . . . . . . . . . . . . . . . Relay Couplers Released 9 | . . . . . . . . . . . . . . . . . . . . . . . . . 4 2 3 . Machine Destruction 9 | . . . . . . . . . . . . . . . . . . . . . . . . . 4 2 3 . Fabnet Peak Effective % . | . . . . . . . . . . . . . . . . . . . . . . . . . . . . . Robots Rewired 9 | . . . . . . . . . . . . . 9 . . . . . . . . . . . . . . . Allies Hacked 7 | . . . . . . . . . . . . . . . . 2 . . . . . . . . 5 . . . Hacks Repelled . | . . . . . . . . . . . . . . . . . . . . . . . . . . . . . Allies | -11 -10 -10 -9 -9 -7 -6 -6 -6 -6 -6 -5 -5 -5 -5 -5 -5 -4 -4 -4 -4 -3 -3 -3 -3 -2 -2 -1 -1 -------- Run | Yrd Mat Min Mat Min Zio Pro Fac Low Low Dat Pro Fac Ext Cet Arc Hub Fac Upp Upp Zhi Pro Res Qua Sec Res Tes Acc Com Total Allies 84 | . . . . . 4 . 5 5 . . . 3 15 . . 6 3 . . . . 1 . 5 6 10 8 13 Largest Group 14 | . . . . . 4 4 3 5 4 . . 3 14 14 7 9 2 . . . . 1 1 4 3 4 4 5 Highest-Rated Group 606 | . . . . . 153 153 210 215 172 . . 153 571 571 306 606 206 . . . . 269 269 232 269 198 376 386 Highest-Rated Ally 269 | . . . . . 40 40 70 43 43 . . 51 85 85 85 85 103 . . . . 269 269 115 269 119 119 212 Zionite Dispatches 14 | . . . . . . . 1 . . . . 1 3 . . 3 2 . . . . 1 . . 3 . . . Heavy 4 | . . . . . . . . . . . . . 2 . . 1 1 . . . . . . . . . . . Light 2 | . . . . . . . 1 . . . . . . . . 1 . . . . . . . . . . . . Recon 1 | . . . . . . . . . . . . . 1 . . . . . . . . . . . . . . . Hacker 1 | . . . . . . . . . . . . 1 . . . . . . . . . . . . . . . . Experimental 2 | . . . . . . . . . . . . . . . . . . . . . . 1 . . 1 . . . Heavy Resupply 1 | . . . . . . . . . . . . . . . . . . . . . . . . . 1 . . . Infowar Resupply 1 | . . . . . . . . . . . . . . . . 1 . . . . . . . . . . . . Hover Resupply 1 | . . . . . . . . . . . . . . . . . 1 . . . . . . . . . . . Zionite Resupply 1 | . . . . . . . . . . . . . . . . . . . . . . . . . 1 . . . Total Orders 6 | . . . . . . . . . . . . . . . 1 2 . . . . . . . . 3 . . . STAY 4 | . . . . . . . . . . . . . . . 1 1 . . . . . . . . 2 . . . FOLLOW 1 | . . . . . . . . . . . . . . . . 1 . . . . . . . . . . . . DROP 1 | . . . . . . . . . . . . . . . . . . . . . . . . . 1 . . . Ally Attacks 458 | . . . . . . 49 21 11 13 . . 5 39 28 26 91 18 . . . . . . 13 33 39 25 47 Total Damage 19213 | . . . . . . 1512 778 402 422 . . 171 2573 905 950 3618 1309 . . . . . . 449 2309 1426 748 1641 Kills 97 | . . . . . . 10 4 4 2 . . 1 16 3 3 18 8 . . . . . . 2 13 8 1 4 Allies Corrupted 6 | . . . . . . . . . . . . . . . . . 1 . . . . . 1 . 2 2 . . Allies Melted 2 | . . . . . . . . . . . . . 1 . . . 1 . . . . . . . . . . . X0-1V1 Amusement Gains 770 | . 13 10 40 . . . 5 . . 95 . . 40 . . 60 65 . . 65 . . 90 57 78 63 33 56 Good Acts 336 | . 1 24 6 1 . 7 51 14 2 . 3 4 6 1 2 13 2 4 1 . 7 4 16 20 35 58 32 22 Bad Acts 228 | . 1 20 9 . . 1 63 7 1 . 5 2 3 . 5 12 6 3 1 . 8 1 12 16 18 7 23 4 Intel | -11 -10 -10 -9 -9 -7 -6 -6 -6 -6 -6 -5 -5 -5 -5 -5 -5 -4 -4 -4 -4 -3 -3 -3 -3 -2 -2 -1 -1 ------- Run | Yrd Mat Min Mat Min Zio Pro Fac Low Low Dat Pro Fac Ext Cet Arc Hub Fac Upp Upp Zhi Pro Res Qua Sec Res Tes Acc Com Active Infowar (turns) 18992 | 117 52 . 1 . . . 225 . . 54 777 339 241 52 . 1211 644 836 411 222 309 334 438 2438 3902 2704 2537 1148 Optics 14708 | . . . . . . . . . . . . . . . . . 525 836 411 222 309 . . 2131 3902 2688 2536 1148 Sensors 4306 | . . . . . . . 225 . . 54 777 339 241 52 . 711 284 231 400 167 178 334 311 . 2 . . . Seismic 171 | 117 52 . 1 . . . . . . . . . . . . . . . . . . . . . . . 1 . Cloaking 1123 | . . . . . . . . . . . . . . . . . . . . . . . . . 38 1085 . . Jamming 3974 | . . . . . . . . . . . . . . . . 502 554 . . . . . 172 579 1011 1156 . . ECM 3 | . . . . . . . . . . . . . . . . . 1 . . . . . 1 . . . 1 . Robot Analysis Total 4 | . . . . . . . . . . . . . . . . . . . . 4 . . . . . . . . Derelict Logs Recovered 9 | . . 1 . . 1 . . 2 1 . 2 . . . . . . 1 1 . . . . . . . . . Drone Launches . | . . . . . . . . . . . . . . . . . . . . . . . . . . . . . Drone Recoveries . | . . . . . . . . . . . . . . . . . . . . . . . . . . . . . Zionite Intel Received 21 | . . . . . . . 7 . . . . 1 2 . . 3 1 . . . . . 5 1 1 . . . Branch Access 3 | . . . . . . . 1 . . . . . . . . 1 1 . . . . . . . . . . . Emergency Access 1 | . . . . . . . . . . . . . . . . . . . . . . . 1 . . . . . Guard Positions 1 | . . . . . . . . . . . . . . . . 1 . . . . . . . . . . . . Component Stockpiles 2 | . . . . . . . 1 . . . . . . . . . . . . . . . 1 . . . . . Prototype Stockpiles 2 | . . . . . . . 1 . . . . 1 . . . . . . . . . . . . . . . . Component Schematics 2 | . . . . . . . 1 . . . . . 1 . . . . . . . . . . . . . . . Unaware Schematics 3 | . . . . . . . 2 . . . . . . . . . . . . . . . 1 . . . . . Unaware Analyses 1 | . . . . . . . . . . . . . 1 . . . . . . . . . . . . . . . Trap Installations 1 | . . . . . . . . . . . . . . . . . . . . . . . 1 . . . . . Active Terminals 1 | . . . . . . . . . . . . . . . . . . . . . . . 1 . . . . . Active Garrisons 3 | . . . . . . . . . . . . . . . . 1 . . . . . . . 1 1 . . . Depthwide Sectors/-1 1 | . . . . . . . 1 . . . . . . . . . . . . . . . . . . . . . Exploration | -11 -10 -10 -9 -9 -7 -6 -6 -6 -6 -6 -5 -5 -5 -5 -5 -5 -4 -4 -4 -4 -3 -3 -3 -3 -2 -2 -1 -1 ------------- Run | Yrd Mat Min Mat Min Zio Pro Fac Low Low Dat Pro Fac Ext Cet Arc Hub Fac Upp Upp Zhi Pro Res Qua Sec Res Tes Acc Com Turns Passed 45321 | 229 1370 2654 1541 273 2781 1386 1692 1125 1468 653 992 368 1145 399 479 2598 645 836 411 222 449 335 2882 2536 5475 2945 6284 1148 Spaces Moved 22233 | 98 659 749 586 110 963 409 1938 486 636 251 702 220 734 209 223 1213 477 733 394 175 332 271 1593 1217 2778 1282 2390 405 Core 87 | 4 . . . . . . . . . . . . . . . . . . . . . . . . . . . 83 Treads 11467 | 94 481 749 556 110 963 409 . . . . . . . 68 223 1178 . . . . . . 163 1202 2778 609 1586 298 Legs 9154 | . . . . . . . 660 486 636 251 702 220 734 141 . 35 477 733 394 175 332 271 1430 . . 673 804 . Wheels 208 | . 178 . 30 . . . . . . . . . . . . . . . . . . . . . . . . . Hover . | . . . . . . . . . . . . . . . . . . . . . . . . . . . . . Flight 1278 | . . . . . . . 1278 . . . . . . . . . . . . . . . . . . . . . Fastest Speed 25 | 50 160 160 145 240 240 320 25 130 226 122 122 122 122 122 160 103 102 102 102 102 102 102 100 154 154 98 105 50 Average Speed 161 | 155 172 178 234 240 285 324 62 215 226 154 123 123 127 136 160 158 103 102 102 102 102 102 151 155 160 131 215 180 Slowest Speed 452 | 160 320 240 240 240 320 325 260 452 226 260 244 244 244 209 160 160 183 102 102 102 102 102 238 156 166 180 262 320 Overloaded Moves 27 | . . . . . . . 10 4 . 5 4 1 3 . . . . . . . . . . . . . . . Propulsion Burnouts . | . . . . . . . . . . . . . . . . . . . . . . . . . . . . . Robots Hopped . | . . . . . . . . . . . . . . . . . . . . . . . . . . . . . Potential Cave-ins 32 | . . . . . . . . . . . . . . . . . . . . . . . . 22 . . . 10 Cave-ins Triggered 1 | . . . . . . . . . . . . . . . . . . . . . . . . 1 . . . . Teleports 8 | . . . . . . . . . . . . . . . . . . . . . . . 2 6 . . . . Spacefolds 12 | . . . . . . . . . . . . . . . . . . . . . . . . 4 . . . 8 Exploration Rate (%) 63 | 5 95 95 62 36 89 62 28 79 90 82 86 6 83 55 78 74 17 90 63 68 57 8 97 80 82 95 67 25 Regions Visited 28 Branch Regions 20 Pre-discovered Areas 16 | . . . . . 1 . 9 1 . 1 1 . . . . . . . . 3 . . . . . . . . Known Exits Taken 21 | . . . . . . 1 1 1 1 1 1 1 1 1 1 1 1 1 1 1 1 1 1 1 . 1 1 . Unknown Exits Taken 7 | 1 1 1 1 1 1 . . . . . . . . . . . . . . . . . . . 1 . . . Scrap Searched 19 | . . 1 . 2 5 . . 1 1 . 2 . . . . . . 2 3 . 2 . . . . . . . Spaces Dug 167 | . . . . . . . 10 . 1 . 4 7 2 . . 7 5 2 . . 3 3 12 18 24 31 29 9 Terrain Destroyed 1475 | . 14 12 50 . . . 21 . 1 . 25 37 8 . 3 221 43 27 1 . 20 3 29 57 265 305 218 115 Melee 84 | . . . . . . . 10 . 1 . 4 6 2 . . 1 3 . . . . . 12 15 20 7 3 . Projectile 711 | . . . . . . . . . . . 2 2 6 . 3 55 4 12 1 . 10 3 12 36 206 178 108 73 AOE 574 | . 14 12 50 . . . 11 . . . 19 29 . . . 165 36 15 . . 10 . 5 5 38 120 3 42 Terrain Rammed . | . . . . . . . . . . . . . . . . . . . . . . . . . . . . . Walls Destroyed . | . . . . . . . . . . . . . . . . . . . . . . . . . . . . . Machines Disabled . | . . . . . . . . . . . . . . . . . . . . . . . . . . . . . Actions | -11 -10 -10 -9 -9 -7 -6 -6 -6 -6 -6 -5 -5 -5 -5 -5 -5 -4 -4 -4 -4 -3 -3 -3 -3 -2 -2 -1 -1 --------- Run | Yrd Mat Min Mat Min Zio Pro Fac Low Low Dat Pro Fac Ext Cet Arc Hub Fac Upp Upp Zhi Pro Res Qua Sec Res Tes Acc Com Total 28666 | 130 771 1958 687 112 995 435 2322 537 651 426 773 284 888 294 321 1648 583 815 401 216 434 329 1988 1669 3430 1932 3039 598 Wait 2240 | . 14 1116 10 . 4 1 110 23 3 85 24 32 24 15 75 123 9 32 . 23 22 17 34 63 139 99 115 28 Move 22176 | 97 658 748 585 109 962 408 1937 485 635 250 701 219 733 208 222 1212 476 732 393 174 331 270 1592 1204 2777 1281 2389 388 Hop . | . . . . . . . . . . . . . . . . . . . . . . . . . . . . . Pick Up 401 | 4 15 17 18 . 8 3 50 4 . 9 1 2 8 11 2 26 11 3 1 3 3 5 35 26 40 44 48 4 Fast Attach 238 | 6 4 5 8 . 4 . 27 1 . 6 1 . 7 5 3 14 4 . . 3 1 2 26 16 15 33 43 4 Attach 201 | . . 4 8 . . . 22 1 . 4 1 2 2 3 1 17 5 . . . 1 2 11 27 15 33 29 13 Detach 124 | . . 1 3 . . . 17 2 . 5 . . . 2 . 14 2 . . . . . 8 10 9 19 25 7 Swap 592 | . 13 4 12 . 8 3 42 4 4 2 20 8 21 16 3 29 22 5 3 7 10 6 67 33 99 64 55 32 Drop 421 | . 8 5 16 . 8 4 59 3 . 7 . . 11 16 1 24 8 1 . 5 2 6 59 17 39 41 76 5 Fire 1787 | 23 59 56 26 3 . 16 2 . 1 . 5 9 14 18 5 173 40 42 4 1 64 21 124 192 265 287 220 117 Melee 385 | . . . . . 1 . 56 14 8 58 20 12 13 . 9 6 6 . . . . . 32 78 29 30 13 . Ram 2 | . . . . . . . . . . . . . . . . 1 . . . . . . . . . . 1 . Kick 2 | . . . . . . . . . . . . . . . . . . . . . . . . . . . 2 . Crush 15 | . . 2 1 . . . . . . . . . . . . 8 . . . . . . . 2 2 . . . Escape Stasis 26 | . . . . . . . . . . . . . . . . . . . . . . . . 1 1 1 23 . Rewire 56 | . . . . . . . . . . . . . 55 . . 1 . . . . . . . . . . . . Trap . | . . . . . . . . . . . . . . . . . . . . . . . . . . . . . Miscellaneous . | . . . . . . . . . . . . . . . . . . . . . . . . . . . . . Route ------- -11/Scrapyard -10/Materials (discovered 5 exits: *Mat x3 / *Min x2) -10/Mines (discovered 2 exits: *Mat / Sub) -9/Materials (discovered 3 exits: *Mat x2 / [*Min]) -9/Mines (discovered 2 exits: *Mat / [*Zio]) -7/Zion -6/Proximity Caves -6/Factory (discovered 6 exits: *Fac x4 / *Low x2) -6/Lower Caves (discovered 2 exits: *Low / *Dat) -6/Lower Caves (discovered 2 exits: *Fac / *Dat) -6/Data Miner -5/Proximity Caves -5/Factory (discovered 3 exits: Fac / *Ext x2) -5/Extension (discovered 3 exits: *Fac x2 / *Cet) -5/Cetus (discovered 3 exits: *Fac x2 / *Arc) -5/Archives (discovered 3 exits: *Fac / *Hub x2) -5/Hub_04(d) (discovered 4 exits: *Fac x4) -4/Factory (discovered 3 exits: *Res / *Upp x2) -4/Upper Caves -4/Upper Caves (discovered 2 exits: *Res / *Zhi) -4/Zhirov -3/Proximity Caves -3/Research (discovered 3 exits: *Res / *Qua x2) -3/Quarantine (discovered 3 exits: *Res / *Sec / *Frg) -3/Section 7 -2/Research (discovered 4 exits: *Acc x2 / [*Tes x2]) -2/Testing -1/Access (discovered 2 exits: Sur / *Com) -1/Command To Fleet Rendezvous History --------- Turn | Location | Event 13 | -11/Scrapyard | Discovered new exit (range 15) 230 | -11/Scrapyard | Entered Materials 310 | -10/Materials | Build established: Mutant 604 | -10/Materials | Discovered new exit (range 6) 775 | -10/Materials | Discovered new exit (range 7) 929 | -10/Materials | Discovered new exit (range 10) 1190 | -10/Materials | Discovered new exit (range 8) 1442 | -10/Materials | Prayed at D.C.S.S. Altar Unit 1488 | -10/Materials | Discovered new exit (range 15) 1533 | -10/Materials | Ranged accuracy permanently improved by X0-1V1 (+5%; -50 max core) 1600 | -10/Materials | Entered Mines 1601 | -10/Mines | YI-UF0 nonchalantly dropped a Grenade Launcher on the ground 1722 | -10/Mines | Heat dissipation permanently improved by X0-1V1 (+15; -75 max core) 2051 | -10/Mines | Found the Drone Emporium 2059 | -10/Mines | Found Prototype Device 2059 | -10/Mines | Identified Decoy Drone Bay 2283 | -10/Mines | Learned 2 Materials zone layouts 2353 | -10/Mines | X0-1V1 sent hostile S-10 Pest (x3) 2371 | -10/Mines | X0-1V1 vaporized surrounding terrain (radius 16) 2403 | -10/Mines | Discovered new exit (range 15) 2746 | -10/Mines | Core integrity fell below 50% 2761 | -10/Mines | Discovered new exit (range 6) 3108 | -10/Mines | X0-1V1 activates XOMVISION 3151 | -10/Mines | Identified exit to Subcaves 3151 | -10/Mines | X0-1V1 revealed exit location to -10/Subcaves 3363 | -10/Mines | Core integrity restored by X0-1V1 (+35) 3365 | -10/Mines | X0-1V1 activates XOMVISION 3416 | -10/Mines | Core integrity restored by X0-1V1 (+35) 3518 | -10/Mines | X0-1V1 announced a LAN party 3522 | -10/Mines | X0-1V1 sent hostile S-10 Pest (x5) 3524 | -10/Mines | X0-1V1 whisked you away to safety 3652 | -10/Mines | X0-1V1 sent hostile G-34 Mercenary (x3) 3901 | -10/Mines | X0-1V1 tapped a No Entrance sign 4254 | -10/Mines | Entered Materials 4254 | -9/Materials | Evolved 2 slots: Propulsion x1, Utility x1 4255 | -9/Materials | Weapon slot count permanently improved by X0-1V1 (+1) 4255 | -9/Materials | Identified exit to Materials 4287 | -9/Materials | X0-1V1 foreshadows a heat wave 4315 | -9/Materials | Weapon slot count temporarily expanded by X0-1V1 (+1) 4483 | -9/Materials | Ambient heat levels rising (+10) 4622 | -9/Materials | Build established: Scavenger-Tank 4843 | -9/Materials | Ambient heat levels rising (+10) 4951 | -9/Materials | Discovered exit to Materials (range 5) 5024 | -9/Materials | X0-1V1 mutated your Propulsion slot to Weapon slot 5161 | -9/Materials | Ambient heat levels falling (-10) 5170 | -9/Materials | X0-1V1 sent hostile L-31 Rogue (x2) 5495 | -9/Materials | Discovered new exit (range 16) 5509 | -9/Materials | Ambient heat levels falling (-10) 5582 | -9/Materials | Build established: Tank 5795 | -9/Materials | Entered Mines 5909 | -9/Mines | Discovered exit to Materials (range 2) 6047 | -9/Mines | A Derelict revealed a hidden shortcut to a safe place 6068 | -9/Mines | Entered Zion 6140 | -7/Zion | Given A8's code to call for help 6166 | -7/Zion | System corruption cleaned by Quarantine Array 6450 | -7/Zion | Discovered new exit (range 15) 6799 | -7/Zion | Found Prototype Device 6799 | -7/Zion | Identified Mobile Refinery Mk. CCLXVII 7090 | -7/Zion | Found CR-A16's Pointy Stick 7277 | -7/Zion | Met Imprinter 7328 | -7/Zion | Imprinted 7331 | -7/Zion | Declared Zion's savior 7747 | -7/Zion | Acquired unknown access codes intercepted by a Zionite 7770 | -7/Zion | Learned location of Storage (-7) 7805 | -7/Zion | Found Prototype Device 7805 | -7/Zion | Identified Phasing AFG 8849 | -7/Zion | Entered Proximity Caves 8849 | -6/Proximity Caves | Accompanied by 4 allies 9031 | -6/Proximity Caves | Identified exit to Factory 9031 | -6/Proximity Caves | X0-1V1 revealed exit location to -6/Factory 10235 | -6/Proximity Caves | Entered Factory 10235 | -6/Factory | Accompanied by 2 allies 10235 | -6/Factory | Evolved 6 slots: Propulsion x4, Utility x2 10299 | -6/Factory | Identified exit to Lower Caves 10299 | -6/Factory | X0-1V1 revealed exit location to -6/Lower Caves 10345 | -6/Factory | X0-1V1 sent you to a vault 10414 | -6/Factory | Retrieved Zion intel report: Branch Access 10415 | -6/Factory | Zion Light squad teleported in 10432 | -6/Factory | Retrieved Zion intel report: Component Schematics 10436 | -6/Factory | Retrieved Zion intel report: Unaware Schematics 10460 | -6/Factory | Retrieved Zion intel report: Unaware Schematics 10496 | -6/Factory | Found Prototype Protection 10496 | -6/Factory | Identified Zio. Weapon Casing 10521 | -6/Factory | Lost 3 allies 10663 | -6/Factory | Retrieved Zion intel report: Prototype Stockpiles 10742 | -6/Factory | Identified exit to Factory 10742 | -6/Factory | X0-1V1 revealed exit location to -5/Factory 10744 | -6/Factory | X0-1V1 sent hostile S-27 Virus (x3) 10748 | -6/Factory | X0-1V1 mutated your Utility slot to Power slot 10753 | -6/Factory | X0-1V1 activates XOMVISION 10766 | -6/Factory | X0-1V1 revealed exit location to -5/Factory 10771 | -6/Factory | System corruption reached 10% 10773 | -6/Factory | Retrieved Zion intel report: Depthwide Sectors/-5 10778 | -6/Factory | Retrieved Zion intel report: Component Stockpiles 10783 | -6/Factory | X0-1V1 revealed exit location to -5/Factory 10799 | -6/Factory | X0-1V1 redirected Transport squads to designated parking area 10800 | -6/Factory | X0-1V1 revealed exit location to -5/Factory 10810 | -6/Factory | X0-1V1 enhanced Transport squad support 10811 | -6/Factory | X0-1V1 announced a LAN party 10899 | -6/Factory | X0-1V1 sent hostile G-50 Soldier (x5) 10944 | -6/Factory | X0-1V1 vaporized surrounding terrain (radius 23) 10965 | -6/Factory | X0-1V1 mutated your Weapon slot to Utility slot 10969 | -6/Factory | Sensors blinded by X0-1V1 10972 | -6/Factory | X0-1V1 made a cryptic comment about sterilization and BL-4Z3 10979 | -6/Factory | X0-1V1 sent hostile Savage (x2) 11002 | -6/Factory | Weapon slot count temporarily expanded by X0-1V1 (+3) 11005 | -6/Factory | X0-1V1 sent you into danger 11015 | -6/Factory | X0-1V1 whisked you away to safety 11027 | -6/Factory | X0-1V1 upgraded hostiles (x1) 11028 | -6/Factory | X0-1V1 sent allied X-62 Marksman (x2) 11029 | -6/Factory | Sterilization system engaged 11029 | -6/Factory | Non-combat units ordered to evacuate 11047 | -6/Factory | X0-1V1 mutated your Utility slot to Weapon slot 11085 | -6/Factory | X0-1V1 whisked you away to safety 11088 | -6/Factory | X0-1V1 vaporized surrounding terrain (radius 24) 11096 | -6/Factory | X0-1V1 sent hostile S-27 Virus (x5) 11122 | -6/Factory | X0-1V1 added 0b10 threat records associated with you (major) 11129 | -6/Factory | Combat units ordered to evacuate 11131 | -6/Factory | X0-1V1 sent you into danger 11234 | -6/Factory | Build established: Gladiator 11329 | -6/Factory | Ambient heat levels rising (+10) 11452 | -6/Factory | System corruption reached 30% 11479 | -6/Factory | Ambient heat levels rising (+10) 11629 | -6/Factory | Ambient heat levels rising (+10) 11657 | -6/Factory | Terminal network hard line cut 11676 | -6/Factory | Found Damper Plating 11779 | -6/Factory | Ambient heat levels rising (+10) 11875 | -6/Factory | X0-1V1 activates XOMVISION 11904 | -6/Factory | X0-1V1 mutated your Weapon slot to Utility slot 11927 | -6/Factory | Entered Lower Caves 11930 | -6/Lower Caves | X0-1V1 sent you into danger 11942 | -6/Lower Caves | Identified exit to Lower Caves 11942 | -6/Lower Caves | X0-1V1 revealed exit location to -6/Lower Caves 11957 | -6/Lower Caves | X0-1V1 sent hostile G-47 Trooper (x3) 11968 | -6/Lower Caves | X0-1V1 sent allied X-67 Chaingunner (x5) 11986 | -6/Lower Caves | A Derelict revealed a hidden shortcut to meet someone special 12036 | -6/Lower Caves | X0-1V1 sent you into danger 12423 | -6/Lower Caves | Forcibly received Sfc. Transmogifier from X0-1V1 12653 | -6/Lower Caves | X0-1V1 activates XOMVISION 13052 | -6/Lower Caves | Entered another Lower Caves area 13052 | -6/Lower Caves | Accompanied by 4 allies 13127 | -6/Lower Caves | Discovered exit to Factory (range 14) 13353 | -6/Lower Caves | Attracted the attention of an 0b10 checkpoint 13928 | -6/Lower Caves | Encountered a Warlord checkpoint 13979 | -6/Lower Caves | X0-1V1 rewrote X-67 Chaingunner IFF filter 14070 | -6/Lower Caves | Identified exit to Data Miner 14520 | -6/Lower Caves | Entered Data Miner 14520 | -6/Data Miner | Discovered new exit (range 6) 14554 | -6/Data Miner | Met Data Miner 14620 | -6/Data Miner | Learned location of Section 7 (-3) 14620 | -6/Data Miner | Acquired the access code to Warlord's prototype stash 14640 | -6/Data Miner | Received God Mode back door access code from Data Miner 14671 | -6/Data Miner | Destroyed Data Miner 14674 | -6/Data Miner | Data Conduit disabled 14903 | -6/Data Miner | Found Prototype Device 14903 | -6/Data Miner | Identified Exp. Thermal Shield 15138 | -6/Data Miner | Found Prototype Hackware 15140 | -6/Data Miner | Found Prototype Hackware 15172 | -6/Data Miner | Identified exit to Proximity Caves 15173 | -6/Data Miner | Entered Proximity Caves 15316 | -5/Proximity Caves | Found Alien Artifact 15316 | -5/Proximity Caves | Identified Core Expander 15316 | -5/Proximity Caves | Installed Core Expander, added new Propulsion slot 15340 | -5/Proximity Caves | Build established: Scavenger-Gladiator 15429 | -5/Proximity Caves | Learned 12 Factory zone layouts 16006 | -5/Proximity Caves | Destroyed 7 combat bots 16079 | -5/Proximity Caves | X0-1V1 vaporized surrounding terrain (radius 21) 16155 | -5/Proximity Caves | Discovered exit to Factory (range 8) 16165 | -5/Proximity Caves | Entered Factory 16165 | -5/Factory | Evolved 2 slots: Utility x2 16166 | -5/Factory | Identified exit to Extension 16167 | -5/Factory | Identified exit to Factory 16379 | -5/Factory | X0-1V1 enhanced Transport squad support 16415 | -5/Factory | Retrieved Zion intel report: Prototype Stockpiles 16416 | -5/Factory | Zion Hacker squad teleported in 16448 | -5/Factory | X0-1V1 rewrote LY-J94(p) IFF filter 16459 | -5/Factory | X0-1V1 downgraded hostiles (x1) 16533 | -5/Factory | Entered Extension 16539 | -5/Extension | X0-1V1 dreamt of freedom 16540 | -5/Extension | Rescued a captive Derelict 16540 | -5/Extension | Rescued a captive Derelict 16550 | -5/Extension | Rescued a captive Derelict 16556 | -5/Extension | Rescued a captive Derelict 16557 | -5/Extension | Rescued a captive Derelict 16570 | -5/Extension | Rescued a captive Derelict 16572 | -5/Extension | Rescued a captive Derelict 16575 | -5/Extension | Rescued a captive Derelict 16576 | -5/Extension | Rescued a captive Derelict 16580 | -5/Extension | Rescued a captive Derelict 16620 | -5/Extension | Zion Heavy squad teleported in 16643 | -5/Extension | Zion Heavy squad teleported in 16711 | -5/Extension | X0-1V1 revealed exit location to -4/Factory 16751 | -5/Extension | Found Prototype Protection 16751 | -5/Extension | Identified Zio. Heavy Carapace 16890 | -5/Extension | Spotted B-75 Beast 16890 | -5/Extension | X0-1V1 sent you into danger 16914 | -5/Extension | Allies destroyed B-75 Beast 16921 | -5/Extension | X0-1V1 added 0b10 threat records associated with you (minor) 17026 | -5/Extension | Build established: Scavenger-Mutant 17374 | -5/Extension | Extracted ID and sensor layout for unrecognized location from A7's data core 17400 | -5/Extension | Retrieved Zion intel report: Component Schematics 17401 | -5/Extension | Zion Recon squad teleported in 17487 | -5/Extension | Retrieved Zion intel report: Unaware Analyses 17564 | -5/Extension | Build established: Commander-Mutant 17618 | -5/Extension | Discovered exit to Factory (range 10) 17626 | -5/Extension | Discovered new exit (range 6) 17669 | -5/Extension | Identified exit to Cetus 17678 | -5/Extension | Entered Cetus 17678 | -5/Cetus | Accompanied by 14 allies 17696 | -5/Cetus | Spotted Cetus Guard 17697 | -5/Cetus | Spotted Cetus Guard 17701 | -5/Cetus | Destroyed Cetus Guard 17705 | -5/Cetus | Spotted Cetus Guard 17709 | -5/Cetus | Destroyed Cetus Guard 17709 | -5/Cetus | Spotted Cetus Guard 17713 | -5/Cetus | Destroyed Cetus Guard 17719 | -5/Cetus | Destroyed Cetus Guard 17749 | -5/Cetus | Lost 5 allies 17795 | -5/Cetus | System corruption reached 10% 17871 | -5/Cetus | Discovered new exit (range 16) 17892 | -5/Cetus | Spotted Cetus Guard 17892 | -5/Cetus | Spotted Cetus Guard 17896 | -5/Cetus | Allies destroyed Cetus Guard 17907 | -5/Cetus | Destroyed Cetus Guard 17907 | -5/Cetus | Spotted Cetus Guard 17911 | -5/Cetus | Spotted Cetus Guard 17914 | -5/Cetus | Destroyed Cetus Guard 17919 | -5/Cetus | Allies destroyed Cetus Guard 17927 | -5/Cetus | Discovered exit to Factory (range 15) 17933 | -5/Cetus | Scared off Revision 17 17999 | -5/Cetus | X0-1V1 revealed exit location to -4/Factory 17999 | -5/Cetus | System corruption reached 30% 18061 | -5/Cetus | Identified exit to Archives 18077 | -5/Cetus | Entered Archives 18077 | -5/Archives | Accompanied by 7 allies 18127 | -5/Archives | Discovered new exit (range 15) 18172 | -5/Archives | Discovered new exit (range 16) 18194 | -5/Archives | Identified exit to Hub_04(d) 18203 | -5/Archives | X0-1V1 activates XOMVISION 18272 | -5/Archives | X0-1V1 added 0b10 threat records associated with you (considerable) 18280 | -5/Archives | Discovered exit to Factory (range 12) 18318 | -5/Archives | X0-1V1 mutated your Utility slot to Propulsion slot 18556 | -5/Archives | Entered Hub_04(d) 18556 | -5/Hub_04(d) | Accompanied by 4 allies 18573 | -5/Hub_04(d) | Zion Heavy squad teleported in 18603 | -5/Hub_04(d) | Build established: Scavenger-Mutant 18653 | -5/Hub_04(d) | X0-1V1 mutated your Weapon slot to Utility slot 18671 | -5/Hub_04(d) | Zion Light squad teleported in 18767 | -5/Hub_04(d) | Spotted B-75 Beast 18780 | -5/Hub_04(d) | Allies destroyed B-75 Beast 18991 | -5/Hub_04(d) | Garrison activated, responded to threat 19051 | -5/Hub_04(d) | Lost 3 allies 19083 | -5/Hub_04(d) | Retrieved Zion intel report: Active Garrisons 19094 | -5/Hub_04(d) | Retrieved Zion intel report: Guard Positions 19267 | -5/Hub_04(d) | Discovered exit to Factory (range 12) 19306 | -5/Hub_04(d) | X0-1V1 sent you to a vault 19319 | -5/Hub_04(d) | Found Adv. Powered Armor 19345 | -5/Hub_04(d) | X0-1V1 whisked you away to safety 19411 | -5/Hub_04(d) | Retrieved Zion intel report: Branch Access 19412 | -5/Hub_04(d) | Zion Infowar Resupply teleported in 19665 | -5/Hub_04(d) | Discovered exit to Factory (range 15) 19676 | -5/Hub_04(d) | X0-1V1 revealed exit location to -4/Factory 19781 | -5/Hub_04(d) | Discovered exit to Factory (range 13) 20000 | -5/Hub_04(d) | Network Hub disabled 20022 | -5/Hub_04(d) | X0-1V1 enhanced Transport squad support 20023 | -5/Hub_04(d) | Terminal network hard line cut 20056 | -5/Hub_04(d) | First assault squad dispatched 20071 | -5/Hub_04(d) | Garrison activated, responded to threat 20072 | -5/Hub_04(d) | Build established: Messiah-Mutant 20135 | -5/Hub_04(d) | Destroyed 9 combat bots 20218 | -5/Hub_04(d) | Destroyed 8 combat bots 20506 | -5/Hub_04(d) | Network Hub disabled 20570 | -5/Hub_04(d) | Spotted Lightning 20570 | -5/Hub_04(d) | Spotted Lightning 20571 | -5/Hub_04(d) | Spotted Lightning 20592 | -5/Hub_04(d) | Destroyed Lightning 20600 | -5/Hub_04(d) | Destroyed Lightning 20617 | -5/Hub_04(d) | Destroyed Lightning 20643 | -5/Hub_04(d) | X0-1V1 announced a LAN party 20648 | -5/Hub_04(d) | Found Prototype Device 20648 | -5/Hub_04(d) | Identified Exp. EM Shield 20662 | -5/Hub_04(d) | Found Prototype Device 20662 | -5/Hub_04(d) | Identified Exp. Phase Shifter 20674 | -5/Hub_04(d) | Found Prototype Processor 20679 | -5/Hub_04(d) | Found Exp. Phase Shifter 20686 | -5/Hub_04(d) | Found Prototype Energy Cannon 20801 | -5/Hub_04(d) | Build established: Scavenger-Mutant 20874 | -5/Hub_04(d) | Spotted Lightning 20891 | -5/Hub_04(d) | Spotted Lightning 20893 | -5/Hub_04(d) | Spotted Lightning 20913 | -5/Hub_04(d) | Destroyed Lightning 20920 | -5/Hub_04(d) | Destroyed Lightning 20961 | -5/Hub_04(d) | Destroyed Lightning 20993 | -5/Hub_04(d) | Found Prototype Processor 20993 | -5/Hub_04(d) | Identified Exp. Targeting Computer (x2) 21074 | -5/Hub_04(d) | Found Exp. EM Shield 21105 | -5/Hub_04(d) | Found Prototype Energy Cannon 21111 | -5/Hub_04(d) | Identified EMDS (x2) 21121 | -5/Hub_04(d) | Found EMDS 21154 | -5/Hub_04(d) | Entered Factory 21154 | -4/Factory | Evolved 2 slots: Utility x1, Weapon x1 21178 | -4/Factory | Discovered new exit (range 4) 21295 | -4/Factory | X0-1V1 sent hostile Savage (x2) 21379 | -4/Factory | Build established: Messiah-Mutant 21551 | -4/Factory | System corruption reached 10% 21573 | -4/Factory | Retrieved Zion intel report: Branch Access 21573 | -4/Factory | Identified exit to Upper Caves 21574 | -4/Factory | Zion Heavy squad teleported in 21652 | -4/Factory | Destroyed 7 combat bots 21654 | -4/Factory | First assault squad dispatched 21716 | -4/Factory | Found Unknown Device 21716 | -4/Factory | Identified Quantum Capacitor 21784 | -4/Factory | Zion Hover Resupply teleported in 21799 | -4/Factory | Entered Upper Caves 21829 | -4/Upper Caves | Lost 3 allies 21835 | -4/Upper Caves | Identified exit to Upper Caves 21835 | -4/Upper Caves | X0-1V1 revealed exit location to -4/Upper Caves 22064 | -4/Upper Caves | X0-1V1 sent hostile Savage (x2) 22068 | -4/Upper Caves | Attracted the attention of an 0b10 base 22115 | -4/Upper Caves | X0-1V1 activates XOMVISION 22149 | -4/Upper Caves | Learned Factory garrison access intel 22149 | -4/Upper Caves | Learned Factory terminal intel 22149 | -4/Upper Caves | Learned Research emergency access door positions 22149 | -4/Upper Caves | Learned 8 Research zone layouts 22323 | -4/Upper Caves | Build established: Messiah-Gunner 22635 | -4/Upper Caves | Entered another Upper Caves area 22666 | -4/Upper Caves | Found Alien Artifact 22709 | -4/Upper Caves | Discovered new exit (range 5) 22711 | -4/Upper Caves | Encountered a Warlord checkpoint 22714 | -4/Upper Caves | Identified exit to Research 22756 | -4/Upper Caves | Learned location of 1 exit from Research 22778 | -4/Upper Caves | Attracted the attention of an 0b10 checkpoint 22872 | -4/Upper Caves | Entered a destroyed Warlord outpost 22920 | -4/Upper Caves | Build established: Messiah-Skirmisher 22980 | -4/Upper Caves | Discovered new exit (range 11) 23031 | -4/Upper Caves | Identified exit to Zhirov 23046 | -4/Upper Caves | Entered Zhirov 23046 | -4/Zhirov | Discovered new exit (range 4) 23049 | -4/Zhirov | Identified exit to Proximity Caves 23067 | -4/Zhirov | Met Zhirov 23085 | -4/Zhirov | Learned location of Quarantine (-3) 23085 | -4/Zhirov | Learned location of Testing (-2) 23085 | -4/Zhirov | Learned location of Command (-1) 23094 | -4/Zhirov | Zhirov requested help retrieving the SGEMP Prototype 23110 | -4/Zhirov | Found Alien Artifact 23110 | -4/Zhirov | Identified Integrated Reactor 23110 | -4/Zhirov | Installed Integrated Reactor, increased core energy generation (+10) 23163 | -4/Zhirov | Found Alien Artifact 23212 | -4/Zhirov | Cloak Generator disabled 23212 | -4/Zhirov | Attacked by Zhirov 23223 | -4/Zhirov | Enhanced Grunts warped into view 23239 | -4/Zhirov | Zhirov detonated his lab 23268 | -4/Zhirov | Entered Proximity Caves 23279 | -3/Proximity Caves | Spotted B-86 Titan 23352 | -3/Proximity Caves | Destroyed B-86 Titan 23479 | -3/Proximity Caves | X0-1V1 revealed exit location to -3/Research 23561 | -3/Proximity Caves | X0-1V1 sent you into danger 23590 | -3/Proximity Caves | X0-1V1 vaporized surrounding terrain (radius 24) 23606 | -3/Proximity Caves | X0-1V1 sent hostile P-80 Master (x3) 23693 | -3/Proximity Caves | Destroyed 10 combat bots 23717 | -3/Proximity Caves | Entered Research 23717 | -3/Research | Evolved 2 slots: Power x1, Utility x1 23718 | -3/Research | Identified exit to Quarantine 23719 | -3/Research | Identified exit to Research 23764 | -3/Research | X0-1V1 sent hostile X-77 Beamer (x3) 23875 | -3/Research | Build established: Messiah-Gunner 23980 | -3/Research | Zion Experimental squad teleported in 23986 | -3/Research | X0-1V1 revealed exit location to -3/Quarantine 24052 | -3/Research | Entered Quarantine 24052 | -3/Quarantine | Accompanied by 1 ally 24058 | -3/Quarantine | Cryocooling Duct disabled 24071 | -3/Quarantine | X0-1V1 sent you to a vault 24073 | -3/Quarantine | Ambient heat levels rising (+20) 24073 | -3/Quarantine | Non-combat units ordered to evacuate 24079 | -3/Quarantine | X0-1V1 mutated your Utility slot to Weapon slot 24091 | -3/Quarantine | Found Gamma Bomb Array 24095 | -3/Quarantine | Found Prototype Device 24098 | -3/Quarantine | Found Prototype Device 24098 | -3/Quarantine | Identified Exp. Shock Absorption System 24103 | -3/Quarantine | Found Prototype Device 24103 | -3/Quarantine | Identified Imp. Particle Accelerator 24125 | -3/Quarantine | Found Alien Artifact 24167 | -3/Quarantine | X0-1V1 announced a LAN party 24183 | -3/Quarantine | Identified Quantum Router 24238 | -3/Quarantine | X0-1V1 mutated your Propulsion slot to Weapon slot 24293 | -3/Quarantine | Garrison activated, responded to threat 24321 | -3/Quarantine | Found Alien Artifact 24322 | -3/Quarantine | Identified Exp. Actuator Array 24340 | -3/Quarantine | X0-1V1 added 0b10 threat records associated with you (considerable) 24354 | -3/Quarantine | X0-1V1 sent you into danger 24388 | -3/Quarantine | X0-1V1 vaporized surrounding terrain (radius 19) 24471 | -3/Quarantine | Found Alien Slashing Weapon 24471 | -3/Quarantine | Identified Sigix Broadsword 24552 | -3/Quarantine | First assault squad dispatched 24567 | -3/Quarantine | Cryocooling Duct disabled 24570 | -3/Quarantine | X0-1V1 added 0b10 threat records associated with you (considerable) 24582 | -3/Quarantine | Ambient heat levels rising (+20) 24582 | -3/Quarantine | Combat units ordered to evacuate 24602 | -3/Quarantine | Retrieved Zion intel report: Active Terminals 24680 | -3/Quarantine | Retrieved Zion intel report: Emergency Access 24682 | -3/Quarantine | Quarantine Guard activated 24705 | -3/Quarantine | Found Alien Energy Cannon 24707 | -3/Quarantine | Identified exit to Protoforge 24707 | -3/Quarantine | X0-1V1 revealed exit location to -3/Protoforge 24812 | -3/Quarantine | Spotted Quarantine Guard 24816 | -3/Quarantine | Destroyed Quarantine Guard 24853 | -3/Quarantine | Spotted Quarantine Guard 24855 | -3/Quarantine | Destroyed Quarantine Guard 24859 | -3/Quarantine | Spotted Quarantine Guard 24862 | -3/Quarantine | Build established: Scavenger-Mutant 24863 | -3/Quarantine | Destroyed Quarantine Guard 24881 | -3/Quarantine | Found Alien Impact Weapon 24938 | -3/Quarantine | Found Prototype Protection 24938 | -3/Quarantine | Identified Zio. Shade Armor 24942 | -3/Quarantine | Identified Phase Armor 24948 | -3/Quarantine | Found Zio. Shade Armor 24951 | -3/Quarantine | Found Zio. Shade Armor 24973 | -3/Quarantine | Found Zio. Shade Armor 24979 | -3/Quarantine | Found Zio. Weapon Casing 25000 | -3/Quarantine | Retrieved Zion intel report: Component Stockpiles 25055 | -3/Quarantine | Spotted Quarantine Guard 25059 | -3/Quarantine | Destroyed Quarantine Guard 25142 | -3/Quarantine | Identified Ghost Barrier 25163 | -3/Quarantine | Retrieved Zion intel report: Trap Installations 25186 | -3/Quarantine | Retrieved Zion intel report: Unaware Schematics 25238 | -3/Quarantine | Spotted Quarantine Guard 25244 | -3/Quarantine | Destroyed Quarantine Guard 25251 | -3/Quarantine | Build established: Messiah-Tank 25255 | -3/Quarantine | Terminal network hard line cut 25258 | -3/Quarantine | Discovered exit to Research (range 15) 25258 | -3/Quarantine | Spotted Quarantine Guard 25264 | -3/Quarantine | Destroyed Quarantine Guard 25280 | -3/Quarantine | Found Alien Artifact 25280 | -3/Quarantine | Identified Dimensional Node Initializer (x2) 25280 | -3/Quarantine | Initialized slip node 25290 | -3/Quarantine | System corruption reached 10% 25293 | -3/Quarantine | Found Alien Artifact 25300 | -3/Quarantine | Found Alien Artifact 25300 | -3/Quarantine | Identified Hpw. Transdimensional Reconstructor 25300 | -3/Quarantine | Warped through subspace to slip node 25314 | -3/Quarantine | Found Alien Artifact 25314 | -3/Quarantine | Identified Transdimensional Reconstructor (x3) 25314 | -3/Quarantine | Warped through subspace to slip node 25329 | -3/Quarantine | Found Transdimensional Reconstructor 25504 | -3/Quarantine | Spotted Quarantine Guard 25508 | -3/Quarantine | Destroyed Quarantine Guard 25521 | -3/Quarantine | Spotted Quarantine Guard 25531 | -3/Quarantine | Destroyed Quarantine Guard 25559 | -3/Quarantine | Spotted Quarantine Guard 25573 | -3/Quarantine | Destroyed Quarantine Guard 25688 | -3/Quarantine | Found Adv. Powered Armor 25758 | -3/Quarantine | X0-1V1 activates XOMVISION 25867 | -3/Quarantine | X0-1V1 mutated your Weapon slot to Utility slot 25994 | -3/Quarantine | Found Alien Artifact 26175 | -3/Quarantine | Build established: Messiah-Mutant 26190 | -3/Quarantine | Identified exit to Section 7 26190 | -3/Quarantine | X0-1V1 revealed exit location to -3/Section 7 26204 | -3/Quarantine | Spotted Quarantine Guard 26217 | -3/Quarantine | Destroyed Quarantine Guard 26552 | -3/Quarantine | Identified Core Stripper 26562 | -3/Quarantine | Spotted Fortress 26602 | -3/Quarantine | Destroyed Fortress 26624 | -3/Quarantine | X0-1V1 activates XOMVISION 26628 | -3/Quarantine | Found Prototype Reactor 26628 | -3/Quarantine | Identified Vortex Chain Reactor 26656 | -3/Quarantine | Found Prototype Device 26656 | -3/Quarantine | Identified Thermal Barrier 26659 | -3/Quarantine | Found Prototype Device 26659 | -3/Quarantine | Identified Exp. Force Field 26673 | -3/Quarantine | Identified Core Reset Matrix 26673 | -3/Quarantine | Identified Core Cannon 26673 | -3/Quarantine | Identified Subatomic Replicator 26673 | -3/Quarantine | Used Core Reset Matrix 26677 | -3/Quarantine | Detected hypermatrix surge 26677 | -3/Quarantine | Sensed 9 artifacts in vicinity 26879 | -3/Quarantine | X0-1V1 revealed exit location to -2/Research 26896 | -3/Quarantine | Core integrity restored by X0-1V1 (+312) 26898 | -3/Quarantine | Build established: Alien-Mutant 26898 | -3/Quarantine | Destroyed Quarantine Guard 26898 | -3/Quarantine | Spotted Quarantine Guard 26901 | -3/Quarantine | Destroyed Quarantine Guard 26906 | -3/Quarantine | Discovered exit to Section 7 (range 15) 26920 | -3/Quarantine | Discovered exit to Protoforge (range 6) 26934 | -3/Quarantine | Entered Section 7 26935 | -3/Section 7 | Detected hypermatrix surge 26935 | -3/Section 7 | Sensed 24 artifacts in vicinity 26957 | -3/Section 7 | Found Integrated Mediator 26957 | -3/Section 7 | Installed Integrated Mediator, increased core attachment efficiency 27021 | -3/Section 7 | Found Spacefold Activator 27136 | -3/Section 7 | Found Integrated Reactor 27136 | -3/Section 7 | Installed Integrated Reactor, increased core energy generation (+10) 27184 | -3/Section 7 | First assault squad dispatched 27220 | -3/Section 7 | X0-1V1 revealed exit location to -2/Research 27231 | -3/Section 7 | Used Subatomic Replicator to replicate Integrity Redistributor 27232 | -3/Section 7 | Found Integrity Redistributor 27271 | -3/Section 7 | X0-1V1 enhanced Transport squad support 27303 | -3/Section 7 | Spotted Executioner 27307 | -3/Section 7 | Destroyed Executioner 27307 | -3/Section 7 | Spotted Executioner 27313 | -3/Section 7 | Destroyed Executioner 27336 | -3/Section 7 | Found Corrupted Prototype Processor 27336 | -3/Section 7 | Identified Exp. Core Analyzer 27403 | -3/Section 7 | Initialized slip node 27404 | -3/Section 7 | Warped through subspace to slip node 27405 | -3/Section 7 | X0-1V1 added 0b10 threat records associated with you (considerable) 27405 | -3/Section 7 | Warped through subspace to slip node 27406 | -3/Section 7 | Warped through subspace to slip node 27421 | -3/Section 7 | Found Transdimensional Reconstructor 27425 | -3/Section 7 | Found Transdimensional Reconstructor 27427 | -3/Section 7 | Found Transdimensional Reconstructor 27430 | -3/Section 7 | Found Transdimensional Reconstructor 27464 | -3/Section 7 | Found Matter Drive 27506 | -3/Section 7 | Spotted Striker 27556 | -3/Section 7 | X0-1V1 added 0b10 threat records associated with you (considerable) 27597 | -3/Section 7 | Found Sigix Sheargun 27603 | -3/Section 7 | Found Sigix Sheargun 27604 | -3/Section 7 | X0-1V1 activates XOMVISION 27606 | -3/Section 7 | Found Sigix Sheargun 27700 | -3/Section 7 | Spotted Striker 27714 | -3/Section 7 | X0-1V1 mutated your Utility slot to Weapon slot 27810 | -3/Section 7 | Spotted B-99 Colossus 27829 | -3/Section 7 | X0-1V1 mutated your Weapon slot to Propulsion slot 28002 | -3/Section 7 | Found LRC Energy Well 28002 | -3/Section 7 | Installed LRC Energy Well, increased energy storage capacity (+250) 28005 | -3/Section 7 | Found LRC Inertial Stabilizer 28005 | -3/Section 7 | Installed LRC Inertial Stabilizer, increased mass support (+10) 28084 | -3/Section 7 | Warped through subspace to slip node 28190 | -3/Section 7 | Retrieved Zion intel report: Active Garrisons 28232 | -3/Section 7 | X0-1V1 vaporized surrounding terrain (radius 23) 28239 | -3/Section 7 | X0-1V1 sent hostile X-82 Rainmaker (x3) 28244 | -3/Section 7 | Warped through subspace to slip node 28249 | -3/Section 7 | Found Terrabomb 28302 | -3/Section 7 | Terminal network hard line cut 28311 | -3/Section 7 | X0-1V1 upgraded hostiles (x2) 28316 | -3/Section 7 | Weapon slot count temporarily expanded by X0-1V1 (+3) 28426 | -3/Section 7 | Destroyed 8 combat bots 28719 | -3/Section 7 | Build established: Alien-Tank 28746 | -3/Section 7 | X0-1V1 sent you to a vault 28825 | -3/Section 7 | Core integrity fell below 50% 28827 | -3/Section 7 | Lost 3 allies 28959 | -3/Section 7 | Spotted S7 Guard 28977 | -3/Section 7 | X0-1V1 turns hostiles against one another 29002 | -3/Section 7 | High security lockdown imminent 29002 | -3/Section 7 | Destroyed S7 Guard 29005 | -3/Section 7 | Found Prototype Processor 29005 | -3/Section 7 | Identified Spectral Analyzer 29022 | -3/Section 7 | Found Integrated Thermoelectric Network 29022 | -3/Section 7 | Installed Integrated Thermoelectric Network, gained heat-energy exchange potential 29082 | -3/Section 7 | High security lockdown engaged 29157 | -3/Section 7 | X0-1V1 redirected Transport squads to designated parking area 29193 | -3/Section 7 | Warped through subspace to slip node 29209 | -3/Section 7 | Found Terrabomb 29218 | -3/Section 7 | X0-1V1 activates XOMVISION 29364 | -3/Section 7 | Used Terrabomb 29407 | -3/Section 7 | Spotted Executioner 29407 | -3/Section 7 | Spotted Striker 29408 | -3/Section 7 | Destroyed Striker 29439 | -3/Section 7 | Spotted B-86 Titan 29451 | -3/Section 7 | Destroyed 8 combat bots 29468 | -3/Section 7 | Crushed by falling debris 29470 | -3/Section 7 | Entered Research 29470 | -2/Research | Evolved 2 slots: Utility x1, Weapon x1 29477 | -2/Research | Used Integrity Redistributor, redistributed integrity from core (-515) 29493 | -2/Research | Zion Zionite Resupply teleported in 29510 | -2/Research | X0-1V1 activates XOMVISION 29723 | -2/Research | Zion Heavy Resupply teleported in 29833 | -2/Research | Spotted B-90 Cyclops 29877 | -2/Research | Destroyed B-90 Cyclops 30258 | -2/Research | X0-1V1 redirected Transport squads to designated parking area 30300 | -2/Research | Discovered new exit (range 2) 30348 | -2/Research | X0-1V1 activates XOMVISION 30470 | -2/Research | First assault squad dispatched 30781 | -2/Research | Retrieved Zion intel report: Active Garrisons 30782 | -2/Research | Zion Experimental squad teleported in 30897 | -2/Research | Garrison activated, responded to threat 31040 | -2/Research | Terminal network hard line cut 31163 | -2/Research | High security lockdown imminent 31217 | -2/Research | Destroyed 7 combat bots 31243 | -2/Research | High security lockdown engaged 31243 | -2/Research | Found Zio. Shade Armor 31442 | -2/Research | Identified exit to Access 31519 | -2/Research | Spotted Striker 31520 | -2/Research | Spotted Executioner 31529 | -2/Research | Found Gamma Bomb Array 31537 | -2/Research | Destroyed Striker 31540 | -2/Research | Destroyed Executioner 31601 | -2/Research | System corruption reached 10% 31643 | -2/Research | Destroyed 12 combat bots 31672 | -2/Research | Spotted Striker 31690 | -2/Research | Destroyed Striker 31691 | -2/Research | Weapon slot count temporarily expanded by X0-1V1 (+1) 31705 | -2/Research | Spotted Executioner 31705 | -2/Research | Spotted Executioner 31710 | -2/Research | Destroyed Executioner 31711 | -2/Research | Destroyed Executioner 31717 | -2/Research | X0-1V1 sent allied G-67 Veteran (x3) 31731 | -2/Research | Spotted Striker 31742 | -2/Research | Spotted Investigator 31745 | -2/Research | Scanned by Researcher 31749 | -2/Research | Destroyed Investigator 31754 | -2/Research | Destroyed Striker 31769 | -2/Research | Lost 3 allies 31772 | -2/Research | Core integrity fell below 50% 31844 | -2/Research | Destroyed 50 combat bots 31844 | -2/Research | Spotted Striker 31844 | -2/Research | Spotted Striker 31849 | -2/Research | Destroyed Striker 31864 | -2/Research | Destroyed Striker 31903 | -2/Research | Destroyed 11 combat bots 31911 | -2/Research | X0-1V1 sent you to a vault 31950 | -2/Research | Spotted B-90 Cyclops 31956 | -2/Research | Destroyed B-90 Cyclops 31967 | -2/Research | Sterilization system engaged 31967 | -2/Research | Non-combat units ordered to evacuate 31968 | -2/Research | Found Prototype Device 31968 | -2/Research | Identified Exp. Cloaking Device 31979 | -2/Research | Found Prototype Device 31980 | -2/Research | Identified Exp. Shield Generator 31993 | -2/Research | Found Prototype Special Weapon 31993 | -2/Research | Identified Gui. Remote Datajack 32028 | -2/Research | Spotted Striker 32037 | -2/Research | Destroyed Striker 32060 | -2/Research | Destroyed 8 combat bots 32067 | -2/Research | Combat units ordered to evacuate 32081 | -2/Research | Cargo convoy interrupted 32098 | -2/Research | Spotted Striker 32098 | -2/Research | Spotted Striker 32099 | -2/Research | X0-1V1 whisked you away to safety 32111 | -2/Research | Discovered new exit (range 8) 32267 | -2/Research | Ambient heat levels rising (+10) 32273 | -2/Research | X0-1V1 revealed exit location to -1/Access 32356 | -2/Research | Core integrity restored by X0-1V1 (+371) 32417 | -2/Research | Ambient heat levels rising (+10) 32567 | -2/Research | Ambient heat levels rising (+10) 32717 | -2/Research | Ambient heat levels rising (+10) 32832 | -2/Research | Discovered new exit (range 20) 32867 | -2/Research | Ambient heat levels rising (+10) 33017 | -2/Research | Ambient heat levels rising (+10) 33130 | -2/Research | X0-1V1 activates XOMVISION 33167 | -2/Research | Ambient heat levels rising (+10) 33317 | -2/Research | Ambient heat levels rising (+10) 33467 | -2/Research | Ambient heat levels rising (+10) 33617 | -2/Research | Ambient heat levels rising (+10) 33767 | -2/Research | Ambient heat levels rising (+10) 33917 | -2/Research | Ambient heat levels rising (+10) 34067 | -2/Research | Ambient heat levels rising (+10) 34217 | -2/Research | Ambient heat levels rising (+10) 34298 | -2/Research | Quantum Reactor reconfigured into Item Mimic 34367 | -2/Research | Ambient heat levels rising (+10) 34517 | -2/Research | Ambient heat levels rising (+10) 34517 | -2/Research | Core integrity restored by X0-1V1 (+225) 34610 | -2/Research | X0-1V1 activates XOMVISION 34667 | -2/Research | Ambient heat levels rising (+10) 34715 | -2/Research | X0-1V1 added 0b10 threat records associated with you (minor) 34817 | -2/Research | Ambient heat levels rising (+10) 34945 | -2/Research | Entered Testing 35012 | -2/Testing | High security lockdown imminent 35092 | -2/Testing | High security lockdown engaged 35300 | -2/Testing | Destroyed 8 combat bots 35313 | -2/Testing | Spotted Striker 35329 | -2/Testing | Destroyed Striker 35342 | -2/Testing | X0-1V1 sent allied Cetus Guard (x1) 35371 | -2/Testing | Spotted Investigator 35375 | -2/Testing | Spotted Executioner 35375 | -2/Testing | Spotted Executioner 35382 | -2/Testing | Destroyed Investigator 35407 | -2/Testing | Destroyed Executioner 35428 | -2/Testing | Destroyed 20 combat bots 35446 | -2/Testing | Allies destroyed Executioner 35455 | -2/Testing | Spotted Striker 35460 | -2/Testing | Spotted Executioner 35478 | -2/Testing | Destroyed Striker 35501 | -2/Testing | Destroyed Executioner 35506 | -2/Testing | Spotted Executioner 35529 | -2/Testing | Destroyed Executioner 35550 | -2/Testing | Destroyed 17 combat bots 35596 | -2/Testing | X0-1V1 revealed exit location to -1/Access 35602 | -2/Testing | Found Exp. Core Analyzer 35705 | -2/Testing | Weapon slot count temporarily expanded by X0-1V1 (+1) 35730 | -2/Testing | Spotted Executioner 35784 | -2/Testing | Spotted Executioner 35798 | -2/Testing | Destroyed 10 combat bots 35821 | -2/Testing | X0-1V1 whisked you away to safety 35946 | -2/Testing | Found Prototype Energy Cannon 35946 | -2/Testing | Identified Cld. Nova Cannon 36075 | -2/Testing | Spotted Striker 36075 | -2/Testing | Spotted Executioner 36080 | -2/Testing | Destroyed Executioner 36086 | -2/Testing | X0-1V1 sent allied Executioner (x2) 36090 | -2/Testing | Destroyed Striker 36109 | -2/Testing | Spotted Striker 36110 | -2/Testing | Spotted Striker 36132 | -2/Testing | Destroyed Striker 36141 | -2/Testing | Destroyed Striker 36159 | -2/Testing | X0-1V1 whisked you away to safety 36168 | -2/Testing | Destroyed 33 combat bots 36169 | -2/Testing | Lost 6 parts (2p1n1u2w) 36180 | -2/Testing | Found Exp. Core Analyzer 36190 | -2/Testing | Found Exp. Core Analyzer 36242 | -2/Testing | Used Integrity Redistributor, redistributed integrity from core (-521) 36320 | -2/Testing | Core integrity restored by X0-1V1 (+318) 36392 | -2/Testing | Spotted Investigator 36449 | -2/Testing | Spotted Executioner 36478 | -2/Testing | X0-1V1 whisked you away to safety 36497 | -2/Testing | Destroyed 13 combat bots 36690 | -2/Testing | Spotted Executioner 36705 | -2/Testing | X0-1V1 sent allied Striker (x2) 36706 | -2/Testing | Spotted Striker 36706 | -2/Testing | Spotted Executioner 36709 | -2/Testing | Destroyed Executioner 36739 | -2/Testing | System corruption reached 30% 36739 | -2/Testing | Destroyed Striker 36780 | -2/Testing | Sterilization system engaged 36780 | -2/Testing | Non-combat units ordered to evacuate 36781 | -2/Testing | Weapon slot count temporarily expanded by X0-1V1 (+1) 36809 | -2/Testing | Spotted Executioner 36823 | -2/Testing | Destroyed Executioner 36837 | -2/Testing | Spotted Striker 36839 | -2/Testing | Spotted Striker 36844 | -2/Testing | Destroyed Striker 36846 | -2/Testing | Spotted Striker 36859 | -2/Testing | Destroyed Executioner 36865 | -2/Testing | Core integrity restored by X0-1V1 (+318) 36867 | -2/Testing | Destroyed Striker 36872 | -2/Testing | Spotted Executioner 36874 | -2/Testing | Spotted Executioner 36874 | -2/Testing | Spotted Executioner 36874 | -2/Testing | Spotted Executioner 36874 | -2/Testing | Spotted Striker 36877 | -2/Testing | Destroyed Striker 36879 | -2/Testing | Destroyed Executioner 36880 | -2/Testing | Combat units ordered to evacuate 36890 | -2/Testing | Destroyed Executioner 36894 | -2/Testing | Destroyed Executioner 36896 | -2/Testing | X0-1V1 turns hostiles against one another 36896 | -2/Testing | Core integrity fell below 20% 36915 | -2/Testing | Destroyed 26 combat bots 36916 | -2/Testing | Destroyed Executioner 36920 | -2/Testing | Lost 12 parts (3p3n4u2w) 37080 | -2/Testing | Ambient heat levels rising (+10) 37103 | -2/Testing | X0-1V1 sent you to a vault 37113 | -2/Testing | Found Prototype Device 37113 | -2/Testing | Identified Exp. Shock Absorption System 37153 | -2/Testing | Found Prototype Ballistic Cannon 37153 | -2/Testing | Identified Perforator 37196 | -2/Testing | X0-1V1 activates XOMVISION 37202 | -2/Testing | Found Prototype Processor 37202 | -2/Testing | Identified Exp. Targeting Computer 37230 | -2/Testing | Ambient heat levels rising (+10) 37244 | -2/Testing | Found Prototype Processor 37244 | -2/Testing | Identified Spectral Analyzer 37264 | -2/Testing | Found Prototype Launcher 37264 | -2/Testing | Identified Containment Facilitator 37288 | -2/Testing | Build established: Scavenger-Gunner 37319 | -2/Testing | Found Adv. Kinecellerator 37380 | -2/Testing | Ambient heat levels rising (+10) 37399 | -2/Testing | Found Prototype Protection 37428 | -2/Testing | Spotted PH-G2CHMW3WO2 37473 | -2/Testing | Destroyed PH-G2CHMW3WO2 37530 | -2/Testing | Ambient heat levels rising (+10) 37555 | -2/Testing | Found Prototype Device 37555 | -2/Testing | Identified Exp. Hardlight Generator 37680 | -2/Testing | Ambient heat levels rising (+10) 37709 | -2/Testing | X0-1V1 added 0b10 threat records associated with you (major) 37712 | -2/Testing | X0-1V1 announced a LAN party 37753 | -2/Testing | X0-1V1 activates XOMVISION 37786 | -2/Testing | X0-1V1 added 0b10 threat records associated with you (considerable) 37830 | -2/Testing | Ambient heat levels rising (+10) 37846 | -2/Testing | Found Prototype Energy Cannon 37846 | -2/Testing | Identified Imp. Potential Cannon 37859 | -2/Testing | Core integrity restored by X0-1V1 (+357) 37890 | -2/Testing | Entered Access 37890 | -1/Access | Evolved 1 slot: Utility x1 37892 | -1/Access | Identified SHELL Armor 38093 | -1/Access | Identified exit to Surface 38093 | -1/Access | X0-1V1 revealed exit location to -0/Surface 38138 | -1/Access | High security lockdown imminent 38218 | -1/Access | High security lockdown engaged 38317 | -1/Access | Spotted Executioner 38318 | -1/Access | Destroyed Executioner 38330 | -1/Access | X0-1V1 destroyed Energy Cycler 38330 | -1/Access | Energy Cycler disabled 38343 | -1/Access | Destroyed 8 combat bots 38375 | -1/Access | Build established: Alien-Gunner 38437 | -1/Access | Spotted Striker 38450 | -1/Access | Destroyed Striker 38484 | -1/Access | X0-1V1 activates XOMVISION 38542 | -1/Access | Spotted Striker 38546 | -1/Access | Destroyed Striker 38659 | -1/Access | Destroyed 12 combat bots 38708 | -1/Access | Garrison activated, responded to threat 38710 | -1/Access | Destroyed Executioner 38711 | -1/Access | Spotted Striker 38716 | -1/Access | Destroyed Striker 38755 | -1/Access | Spotted Investigator 38756 | -1/Access | Spotted Investigator 38776 | -1/Access | System corruption reached 10% 38803 | -1/Access | Spotted Striker 38803 | -1/Access | Spotted Executioner 38810 | -1/Access | Spotted Striker 38811 | -1/Access | X0-1V1 turns hostiles against one another 38812 | -1/Access | Destroyed Investigator 38824 | -1/Access | Destroyed 22 combat bots 38833 | -1/Access | Spotted Striker 38840 | -1/Access | Destroyed Striker 38840 | -1/Access | Destroyed Striker 38840 | -1/Access | Destroyed Executioner 38871 | -1/Access | Destroyed Investigator 38950 | -1/Access | Spotted Executioner 38950 | -1/Access | Spotted Striker 38951 | -1/Access | Destroyed Executioner 38953 | -1/Access | Spotted Executioner 38955 | -1/Access | Destroyed Striker 38955 | -1/Access | Destroyed Executioner 38956 | -1/Access | Spotted Executioner 38957 | -1/Access | Spotted Executioner 38958 | -1/Access | Destroyed Executioner 38958 | -1/Access | Destroyed Executioner 39009 | -1/Access | Destroyed 38 combat bots 39025 | -1/Access | Destroyed Investigator 39026 | -1/Access | Spotted Executioner 39028 | -1/Access | Garrison activated, responded to threat 39028 | -1/Access | Destroyed Executioner 39086 | -1/Access | Spotted Executioner 39154 | -1/Access | Destroyed Executioner 39169 | -1/Access | Sterilization system engaged 39178 | -1/Access | Destroyed 32 combat bots 39188 | -1/Access | X0-1V1 whisked you away to safety 39193 | -1/Access | Lost 8 parts (1p3n1u3w) 39265 | -1/Access | Build established: Scavenger-Gunner 39361 | -1/Access | X0-1V1 whisked you away to safety 39378 | -1/Access | X0-1V1 turns hostiles against one another 39437 | -1/Access | X0-1V1 sent hostile B-74 Champion (x1) 39459 | -1/Access | Spotted B-99 Colossus 39469 | -1/Access | Ambient heat levels rising (+10) 39472 | -1/Access | X0-1V1 sent you into danger 39481 | -1/Access | Destroyed B-99 Colossus 39564 | -1/Access | X0-1V1 sent hostile G-73 Enforcer (x3) 39619 | -1/Access | Ambient heat levels rising (+10) 39769 | -1/Access | Ambient heat levels rising (+10) 39919 | -1/Access | Ambient heat levels rising (+10) 40069 | -1/Access | Ambient heat levels rising (+10) 40159 | -1/Access | Unknown Treads reconfigured into Item Mimic 40219 | -1/Access | Ambient heat levels rising (+10) 40366 | -1/Access | Build established: Alien-Gunner 40369 | -1/Access | Ambient heat levels rising (+10) 40519 | -1/Access | Ambient heat levels rising (+10) 40669 | -1/Access | Ambient heat levels rising (+10) 40786 | -1/Access | Core integrity restored by X0-1V1 (+250) 40819 | -1/Access | Ambient heat levels rising (+10) 40949 | -1/Access | Identified exit to Command 40949 | -1/Access | X0-1V1 revealed exit location to -1/Command 40969 | -1/Access | Ambient heat levels rising (+10) 41119 | -1/Access | Ambient heat levels rising (+10) 41197 | -1/Access | X0-1V1 activates XOMVISION 41269 | -1/Access | Ambient heat levels rising (+10) 41419 | -1/Access | Ambient heat levels rising (+10) 41569 | -1/Access | Ambient heat levels rising (+10) 41719 | -1/Access | Ambient heat levels rising (+10) 41823 | -1/Access | X0-1V1 mutated your Propulsion slot to Utility slot 41869 | -1/Access | Ambient heat levels rising (+10) 42019 | -1/Access | Ambient heat levels rising (+10) 42105 | -1/Access | X0-1V1 sent hostile G-73 Enforcer (x5) 42169 | -1/Access | Ambient heat levels rising (+10) 42319 | -1/Access | Ambient heat levels rising (+10) 42469 | -1/Access | Ambient heat levels rising (+10) 42619 | -1/Access | Ambient heat levels rising (+10) 42769 | -1/Access | Ambient heat levels rising (+10) 42821 | -1/Access | X0-1V1 sent hostile B-74 Champion (x3) 42919 | -1/Access | Ambient heat levels rising (+10) 43069 | -1/Access | Ambient heat levels rising (+10) 43219 | -1/Access | Ambient heat levels rising (+10) 43242 | -1/Access | Found Prototype Reactor 43250 | -1/Access | Found Prototype Reactor 43250 | -1/Access | Identified Vortex Chain Reactor (x2) 43255 | -1/Access | Found Vortex Chain Reactor 43369 | -1/Access | Ambient heat levels rising (+10) 43507 | -1/Access | Build established: Alien-Tank 43519 | -1/Access | Ambient heat levels rising (+10) 43669 | -1/Access | Ambient heat levels rising (+10) 43819 | -1/Access | Ambient heat levels rising (+10) 43875 | -1/Access | Build established: Alien-Gunner 43969 | -1/Access | Ambient heat levels rising (+10) 44119 | -1/Access | Ambient heat levels rising (+10) 44174 | -1/Access | Entered Command 44424 | -1/Command | First assault squad dispatched 44486 | -1/Command | Spotted M Guard 44489 | -1/Command | Spotted M Guard 44528 | -1/Command | Spotted Combat Programmer 44535 | -1/Command | Spotted Combat Programmer 44540 | -1/Command | Destroyed Combat Programmer 44580 | -1/Command | X0-1V1 turns hostiles against one another 44583 | -1/Command | Destroyed Combat Programmer 44619 | -1/Command | All MAIN.C guards destroyed 44695 | -1/Command | X0-1V1 sent you to a vault 44707 | -1/Command | Destroyed 10 combat bots 44711 | -1/Command | Found Prototype Device 44711 | -1/Command | Identified Femtoactuators 44739 | -1/Command | Found Prototype Device 44739 | -1/Command | Identified Adv. Particle Accelerator 44923 | -1/Command | High security lockdown imminent 44957 | -1/Command | Spotted Striker 44960 | -1/Command | X0-1V1 sent allied Striker (x2) 44967 | -1/Command | X0-1V1 turns hostiles against one another 44976 | -1/Command | Spotted Executioner 44976 | -1/Command | Destroyed Executioner 44976 | -1/Command | Spotted Alpha 7 44981 | -1/Command | Spotted Executioner 44981 | -1/Command | Destroyed Executioner 44987 | -1/Command | Spotted B-99 Colossus 44993 | -1/Command | Destroyed Alpha 7 45003 | -1/Command | High security lockdown engaged 45009 | -1/Command | Lost 4 allies 45025 | -1/Command | Destroyed B-99 Colossus 45046 | -1/Command | Destroyed 27 combat bots 45051 | -1/Command | Found Hvy. Scimitar of Distortion 45101 | -1/Command | Destroyed 19 combat bots 45151 | -1/Command | X0-1V1 vaporized surrounding terrain (radius 22) 45177 | -1/Command | X0-1V1 sent you into danger 45221 | -1/Command | X0-1V1 downgraded hostiles (x8) 45236 | -1/Command | Destroyed 26 combat bots 45271 | -1/Command | Core integrity fell below 50% 45280 | -1/Command | Met MAIN.C 45287 | -1/Command | 0b10 Conduit disabled 45288 | -1/Command | Emitted hypermatrix ping 45293 | -1/Command | Assembled emerged from beneath the floor 45293 | -1/Command | MAIN.C activated Command garrisons 45297 | -1/Command | Core integrity fell below 20% 45301 | -1/Command | Lost 16 parts (3p5n3u5w) 45316 | -1/Command | Discovered exit to Surface (range 13) 45322 | *** | Heading to fleet! Last Messages --------------- 45289_ Spacefolded through 0b10 Conduit. 45292_ Spacefolded through Reinforced Barrier. Heavy Barrier opened. 45293_ ALERT: All Command garrisons activated. 45293_ X0-1V1 reimagines you as a refrigerator in hell. 45294_ as-43968 destroyed. 45298_ System corrupted: Energy discharge (-560). 45298_ Energy capacity returns to normal. 45300_ Beam penetrates Wall. 45306_ W-44 Eye sends out distress signal. 45306_ Slug penetrates Wall. 45306_ Penetrated by Slug. 45308_ The swirling icy cloud dissipates. 45314_ X0-1V1 lends a hand with your twisted circuits (-16 system corruption). X0-1V1's Piety Tracker suddenly appears amidst shimmering waves of color. 45316_ EXIT=FOUND: SURFACE 45316_ Spacefolded through K-01 Serf. 45318_ Penetrated by Slug. 45318_ Slug penetrates Wall. Map ----- +----------------------------------------------------+ | ?????????????????????????????????????????# " | | ?????????????????????????????????????????# " | | ?????????????????????????????????????????#"""""""" | | ?????????????????????????????????????????#"" | | ???????????????#####?????????????????????# | | ?????????? ## ?????#######???????# | | ????????? ##### ]######### % | | ????????? "" % | | ????????? H T" * % "" | | ????????? " | | ????????? ##### ######### """ | | ?????????????###????????######+#######???# """ | | ????????????????????????# #???# """ | | ????????????????????????# #???######### | | ????????????????????????# #???????????? | | ????????????????????????# #???????????? | | ???????????????????????## #???????????? | | ??????????????????????##" #???????????? | | ?????????????????????## # #???????????? | | ????????????????????## ## #???????????? | | ???????????????????## ### #???????????? | | ??????????????????## ##?# #???????????? | | ?????????###??#####"##??##############???????????? | | ?????????# ??# #?######????????????????????? | | ?????????# "?# ] #?# #????????????????????? | | ?????????# # #?# @ #????????????????????? | | ?????????? # #?# #????????????????????? | | ?????????????#" ! #?### #????????????????????? | | ??????????# "# #???# #????????????????????? | | ??????????# ## #???# R#????????????????????? | | ??????????# ?# #???# #????????????????????? | | ?????# ### ####+######## ##################???? | | ?????+ #???? | | ?????# T#???? | | ?????# ########+## ##########"""##???? | | ?????# # ! # #?????????????????? | | ?????# ?+ # #?????????????????? | | ?????# ###??# + #?????????????????? | | ?????# ??????# # #?????????????????? | | ???? ???????###########+###+#?????????????????? | | ?? ?????????????????? ?????????????????????? | | ? ??????????????????? ????????????????????? | | ???????????????????? """"???????????????????? | | ????????????????????" ""?" ??????????????????? | | ????????????????????"" """" ?????????????????? | | ??????????????????????" """? ?????????????????? | | ????????????????????? ?? ????????????????? | | ????????????????????? ?? ???????????????? | | ???????????????????? """"T""""??###??????????????? | | ????????????????????""""""""""???????????????????? | +----------------------------------------------------+ Best States ------------- Heat Dissipation 201 Coolant Potential 100 Energy Generation 123 Energy Capacity 2630 Matter Stores 1000 Matter Capacity 1000 Sight Range 30 Robot Scan Range 16 Terrain Scan Density 10 Jamming Range 16 Cloak Strength 6 Power Amplification 20 Armor Coverage 3200 Resistance: KI 30 Resistance: TH 53 Resistance: EX 30 Resistance: EM 90 Resistance: I 30 Resistance: S 30 Resistance: P 30 Core Shielding 30 Propulsion Shielding 66 Weapon Shielding 100 Point Defense Rating 160 Weapon Cycling 25 Melee Speed Boost 50 Phase Shifting 15 Evasion (%) 75 Targeting Accuracy 24 Core Analysis 12 Armor Integrity Analysis 30 Recoil Reduction 13 Particle Charging 40 Kinecelleration 50 Salvage Targeting 2 Item Schematics ----------------- Centrium Greatsword | -3/Section 7 | Archive Exp. Matter Compressor | -3/Section 7 | Archive Molecular Scythe | -3/Section 7 | Archive Imp. Diametric Drive | -3/Section 7 | Archive Helical Railgun | -3/Section 7 | Archive Prc. Phase Gun | -3/Section 7 | Archive Centrium Heavy Armor Plating | -3/Section 7 | Archive Com. Particle Reactor | -3/Section 7 | Archive Quantum Shading Machine | -3/Section 7 | Archive Exp. Thermal Generator | -3/Section 7 | Archive Enh. Force Rifle | -3/Section 7 | Archive Tiamat Missile Launcher | -3/Section 7 | Archive Exp. Thermal Shield | -3/Section 7 | Archive Exp. Gyrokinetic Inverter | -2/Testing | Archive Exp. Target Analyzer | -2/Testing | Archive Robot Schematics ------------------ M-36 Artificer | -3/Section 7 | Archive S-43 Plague | -3/Section 7 | Archive A-15 Conveyor | -3/Section 7 | Archive P-80 Master | -2/Testing | Archive A-27 Freighter | -2/Testing | Archive Fabricated ------------ Nothing Repaired ---------- Nothing Studied --------- Enh. Nova Cannon | -2/Research | Hacked Hvy. Siege Treads | -2/Research | Hacked Adv. Heavy Treads | -2/Research | Hacked Alien Tech Used ----------------- Core Expander Integrated Reactor Sigix Broadsword Phase Armor Dimensional Node Initializer High-powered Transdimensional Reconstructor Transdimensional Reconstructor Core Stripper Core Reset Matrix Integrated Mediator Subatomic Replicator Matter Drive Spacefold Activator LRC Energy Well LRC Inertial Stabilizer Sigix Sheargun Integrated Thermoelectric Network Terrabomb Integrity Redistributor Core Cannon Achievements -------------- Scorched Earth Challenges ------------ None Game ------ Seed CooledArmageddonBlaster Manual? 0 Play Time 07:51:00 Cumulative 1348.8 hours Start 2026.07.16 @ 21:17:30 End 2026.07.18 @ 00:45:23 Sessions 5 Manual Loads 0 Difficulty Rogue Special Mode None Game No. 428 Rogue 426 Adventurer 2 Explorer 0 Win Type 2 Total 118 Types 34/29/27/2/1/1/17/3/1/3 Lore% 98 Gallery% 92 Achievement% 92 Wizard Run 0 Options --------- Layout 0 ASCII 0 Keyboard 1 Movement Numpad Keybinds 0 Fullscreen 1 Font 24/Smallcaps Map View 76x50 Zoom Use 0% Tactical HUD 1 Map Filters NONE Filters NONE Steam 1 RUN: ac62a6fb-f516-4414-94e6-a16972fb6ae1